{"text_format":"1","workbook":"xlsx","n_sheets":2,"sheets":["раздел 1","РАЗДЕЛ 2"],"not_rendered":{"charts":0,"images":0,"macros":0,"external_links":1,"defined_names":5,"comments":0,"pivot_tables":0},"unopened":[],"bounds":{"document_bytes":16777216,"sheet_cells":100000,"rows_first":2000,"rows_last":500,"rows_between":2000,"halvings":0,"cell_chars":16384,"cell_head_chars":4096},"cells_cut":0,"cells_raw":0,"read":"whole","date_system":"1900"}

{"sheet":"раздел 1","index":0,"n_rows":164,"n_cols":98,"rows_kept":164,"cut":false,"hidden":false,"merged":[[52,0,52,40],[51,41,51,48],[52,41,52,48],[51,49,51,61],[52,49,52,61],[51,62,51,74],[52,62,52,74],[49,0,49,40],[50,0,50,40],[49,41,49,48],[50,41,50,48],[49,49,49,61],[50,49,50,61],[49,62,49,74],[50,62,50,74],[51,0,51,40],[95,49,95,61],[96,49,96,61],[97,49,97,61],[47,41,47,48],[47,49,47,61],[47,62,47,74],[47,90,47,102],[94,62,94,74],[95,62,95,74],[96,62,96,74],[97,62,97,74],[67,90,67,102],[53,90,53,102],[56,90,56,102],[61,90,61,102],[62,62,62,74],[62,90,62,102],[61,62,61,74],[64,90,64,102],[63,90,63,102],[65,90,65,102],[68,90,68,102],[85,41,85,48],[92,90,92,102],[81,0,81,40],[81,41,81,48],[81,49,81,61],[81,62,81,74],[77,62,77,74],[81,90,81,102],[120,0,120,40],[120,41,120,48],[120,49,120,61],[120,62,120,74],[120,90,120,102],[116,0,116,40],[116,41,116,48],[116,49,116,61],[116,62,116,74],[116,90,116,102],[118,0,118,40],[118,41,118,48],[118,49,118,61],[118,62,118,74],[118,90,118,102],[119,0,119,40],[119,41,119,48],[119,49,119,61],[121,62,121,74],[121,90,121,102],[124,0,124,40],[124,41,124,48],[124,49,124,61],[124,62,124,74],[124,90,124,102],[123,0,123,40],[123,41,123,48],[123,49,123,61],[123,62,123,74],[123,90,123,102],[122,0,122,40],[122,41,122,48],[122,49,122,61],[122,62,122,74],[122,90,122,102],[121,0,121,40],[121,41,121,48],[121,49,121,61],[113,90,113,102],[119,90,119,102],[117,0,117,40],[117,41,117,48],[117,49,117,61],[117,62,117,74],[117,90,117,102],[114,0,114,40],[114,41,114,48],[114,49,114,61],[114,62,114,74],[114,90,114,102],[115,0,115,40],[115,41,115,48],[115,49,115,61],[115,62,115,74],[115,90,115,102],[119,62,119,74],[113,0,113,40],[113,41,113,48],[113,49,113,61],[113,62,113,74],[111,0,111,40],[111,41,111,48],[111,49,111,61],[111,62,111,74],[111,90,111,102],[112,0,112,40],[112,41,112,48],[112,49,112,61],[112,62,112,74],[112,90,112,102],[87,0,87,40],[87,41,87,48],[87,49,87,61],[87,62,87,74],[87,90,87,102],[70,90,70,102],[70,0,70,40],[70,41,70,48],[70,49,70,61],[70,62,70,74],[71,90,71,102],[71,0,71,40],[71,41,71,48],[71,49,71,61],[71,62,71,74],[72,90,72,102],[72,0,72,40],[72,41,72,48],[72,49,72,61],[74,90,74,102],[74,0,74,40],[74,41,74,48],[74,49,74,61],[78,90,78,102],[1,89,1,102],[2,86,2,102],[3,86,3,102],[4,86,4,102],[5,86,5,102],[6,86,6,102],[8,86,8,87],[8,89,8,102],[9,91,9,93],[9,94,9,96],[15,88,15,89],[15,90,15,102],[7,89,7,102],[23,49,26,61],[23,62,26,74],[27,0,27,40],[27,41,27,48],[27,49,27,61],[27,62,27,74],[27,90,27,102],[23,75,23,102],[12,23,12,25],[12,26,12,47],[12,48,12,50],[12,51,12,55],[12,56,12,58],[23,0,26,40],[23,41,26,48],[25,75,25,79],[25,80,25,84],[25,85,25,89],[24,90,26,102],[11,62,11,64],[12,16,12,22],[12,59,12,67],[12,90,13,102],[14,24,14,27],[14,28,14,30],[14,31,14,32],[14,34,14,48],[14,49,14,51],[14,52,14,54],[14,90,14,102],[21,0,21,102],[29,90,29,102],[29,0,29,40],[29,41,29,48],[29,49,29,61],[29,62,29,74],[28,41,28,48],[28,49,28,61],[28,62,28,74],[16,27,16,87],[16,88,16,89],[16,90,16,102],[17,88,17,89],[17,90,17,102],[18,90,18,102],[19,27,19,87],[19,90,19,102],[20,90,20,102],[31,90,31,102],[31,0,31,40],[31,41,31,48],[31,49,31,61],[31,62,31,74],[30,90,30,102],[30,0,30,40],[28,90,28,102],[28,0,28,40],[30,41,30,48],[30,49,30,61],[30,62,30,74],[32,90,33,102],[34,90,34,102],[35,90,35,102],[35,62,35,74],[35,49,35,61],[40,76,41,76],[40,81,41,81],[35,0,35,40],[35,41,35,48],[34,0,34,40],[34,41,34,48],[34,49,34,61],[34,62,34,74],[40,62,41,74],[41,0,41,40],[32,81,33,81],[32,0,32,40],[33,0,33,40],[32,41,33,48],[32,49,33,61],[32,62,33,74],[32,86,33,86],[40,90,41,102],[40,0,40,40],[40,41,41,48],[40,49,41,61],[36,0,36,40],[36,41,36,48],[36,49,36,61],[36,90,36,102],[39,0,39,40],[39,41,39,48],[39,49,39,61],[39,62,39,74],[39,90,39,102],[36,62,36,74],[40,86,41,86],[38,0,38,40],[38,41,38,48],[38,49,38,61],[38,62,38,74],[38,90,38,102],[37,0,37,40],[37,41,37,48],[37,49,37,61],[37,62,37,74],[37,90,37,102],[42,90,42,102],[42,0,42,40],[42,41,42,48],[42,49,42,61],[42,62,42,74],[48,90,48,102],[48,0,48,40],[48,41,48,48],[48,49,48,61],[48,62,48,74],[43,90,43,102],[43,0,43,40],[46,0,46,40],[46,41,46,48],[46,49,46,61],[46,62,46,74],[46,90,46,102],[45,0,45,40],[45,41,45,48],[45,49,45,61],[45,90,45,102],[44,0,44,40],[44,41,44,48],[47,0,47,40],[53,0,53,40],[53,41,53,48],[53,49,53,61],[53,62,53,74],[54,76,55,76],[54,81,55,81],[54,90,55,102],[54,0,54,40],[54,86,55,86],[54,41,55,48],[54,49,55,61],[54,62,55,74],[55,0,55,40],[56,0,56,40],[56,41,56,48],[56,49,56,61],[56,62,56,74],[59,90,59,102],[60,0,60,40],[60,41,60,48],[60,49,60,61],[60,62,60,74],[60,90,60,102],[59,0,59,40],[57,90,57,102],[57,0,57,40],[57,41,57,48],[57,49,57,61],[57,62,57,74],[58,90,58,102],[58,0,58,40],[58,41,58,48],[58,49,58,61],[58,62,58,74],[59,41,59,48],[59,49,59,61],[64,0,64,40],[64,41,64,48],[64,49,64,61],[64,62,64,74],[61,0,61,40],[62,0,62,40],[61,41,61,48],[61,49,61,61],[62,41,62,48],[62,49,62,61],[63,0,63,40],[63,41,63,48],[63,49,63,61],[63,62,63,74],[65,0,65,40],[65,41,65,48],[65,49,65,61],[65,62,65,74],[66,90,66,102],[66,0,66,40],[66,41,66,48],[66,49,66,61],[66,62,66,74],[78,62,78,74],[74,62,74,74],[75,90,75,102],[75,0,75,40],[75,41,75,48],[75,49,75,61],[75,62,75,74],[76,90,76,102],[76,0,76,40],[76,41,76,48],[76,49,76,61],[76,62,76,74],[68,49,68,61],[68,62,68,74],[82,90,82,102],[82,0,82,40],[82,41,82,48],[82,49,82,61],[82,62,82,74],[79,90,79,102],[79,0,79,40],[79,41,79,48],[79,49,79,61],[79,62,79,74],[80,90,80,102],[80,0,80,40],[80,41,80,48],[80,49,80,61],[80,62,80,74],[77,90,77,102],[77,0,77,40],[77,41,77,48],[77,49,77,61],[78,0,78,40],[78,41,78,48],[78,49,78,61],[99,49,99,61],[85,49,85,61],[85,62,85,74],[86,90,86,102],[86,0,86,40],[86,41,86,48],[86,49,86,61],[86,62,86,74],[83,90,83,102],[83,0,83,40],[83,41,83,48],[83,49,83,61],[83,62,83,74],[84,90,84,102],[84,0,84,40],[84,41,84,48],[84,49,84,61],[84,62,84,74],[97,0,97,40],[94,41,94,48],[95,41,95,48],[96,41,96,48],[97,41,97,48],[94,49,94,61],[104,62,104,74],[110,0,110,40],[110,41,110,48],[110,49,110,61],[110,62,110,74],[110,90,110,102],[89,90,89,102],[89,0,89,40],[89,41,89,48],[89,49,89,61],[89,62,89,74],[98,49,98,61],[98,62,98,74],[106,90,106,102],[100,90,100,102],[100,0,100,40],[100,41,100,48],[100,49,100,61],[100,62,100,74],[101,90,101,102],[101,0,101,40],[101,41,101,48],[101,49,101,61],[101,62,101,74],[131,41,131,48],[99,62,99,74],[99,90,99,102],[131,49,131,61],[131,62,131,74],[128,0,128,40],[128,41,128,48],[128,49,128,61],[128,62,128,74],[128,90,128,102],[127,0,127,40],[127,41,127,48],[127,49,127,61],[99,0,99,40],[99,41,99,48],[102,49,102,61],[102,62,102,74],[102,90,102,102],[104,49,104,61],[106,62,106,74],[109,0,109,40],[109,41,109,48],[109,49,109,61],[109,62,109,74],[140,0,140,40],[134,90,134,102],[134,0,134,40],[129,0,129,40],[129,41,129,48],[129,49,129,61],[129,62,129,74],[129,90,129,102],[133,90,133,102],[133,0,133,40],[133,41,133,48],[133,49,133,61],[133,62,133,74],[130,0,130,40],[130,41,130,48],[130,49,130,61],[130,62,130,74],[130,90,130,102],[132,0,132,40],[132,41,132,48],[132,49,132,61],[132,62,132,74],[132,90,132,102],[131,0,131,40],[134,49,134,61],[157,0,157,102],[150,0,150,102],[152,0,152,102],[153,0,153,102],[154,0,154,102],[142,90,142,102],[142,0,142,40],[138,62,138,74],[139,90,139,102],[139,0,139,40],[139,41,139,48],[139,49,139,61],[139,62,139,74],[138,90,138,102],[138,0,138,40],[138,41,138,48],[138,49,138,61],[141,90,141,102],[141,0,141,40],[141,41,141,48],[141,49,141,61],[141,62,141,74],[140,90,140,102],[135,62,135,74],[142,41,142,48],[142,49,142,61],[142,62,142,74],[109,90,109,102],[108,90,108,102],[108,0,108,40],[108,41,108,48],[108,49,108,61],[108,62,108,74],[140,41,140,48],[140,49,140,61],[140,62,140,74],[136,41,136,48],[136,49,136,61],[136,62,136,74],[137,90,137,102],[137,0,137,40],[137,41,137,48],[137,49,137,61],[137,62,137,74],[136,90,136,102],[136,0,136,40],[134,41,134,48],[96,0,96,40],[134,62,134,74],[135,90,135,102],[135,0,135,40],[105,0,105,40],[105,41,105,48],[105,49,105,61],[105,62,105,74],[107,90,107,102],[107,0,107,40],[107,41,107,48],[107,49,107,61],[107,62,107,74],[106,0,106,40],[106,41,106,48],[106,49,106,61],[131,90,131,102],[125,0,125,40],[125,41,125,48],[125,49,125,61],[125,62,125,74],[125,90,125,102],[135,41,135,48],[135,49,135,61],[98,90,98,102],[103,90,103,102],[93,90,93,102],[90,90,90,102],[91,90,91,102],[91,0,91,40],[91,41,91,48],[91,49,91,61],[91,62,91,74],[98,0,98,40],[98,41,98,48],[92,49,92,61],[92,62,92,74],[93,0,93,40],[93,41,93,48],[93,49,93,61],[93,62,93,74],[90,0,90,40],[90,41,90,48],[90,49,90,61],[90,62,90,74],[94,0,94,40],[95,0,95,40],[102,41,102,48],[92,0,92,40],[92,41,92,48],[43,41,43,48],[43,49,43,61],[43,62,43,74],[45,62,45,74],[44,49,44,61],[44,62,44,74],[44,90,44,102],[72,62,72,74],[59,62,59,74],[67,0,67,40],[67,41,67,48],[67,49,67,61],[67,62,67,74],[88,90,88,102],[88,0,88,40],[88,41,88,48],[88,49,88,61],[88,62,88,74],[85,90,85,102],[85,0,85,40],[68,0,68,40],[68,41,68,48],[105,90,105,102],[69,0,69,40],[69,41,69,48],[69,49,69,61],[69,62,69,74],[69,90,69,102],[127,62,127,74],[127,90,127,102],[126,0,126,40],[126,41,126,48],[126,49,126,61],[126,62,126,74],[126,90,126,102],[103,0,103,40],[103,41,103,48],[103,49,103,61],[103,62,103,74],[104,0,104,40],[73,0,73,40],[73,41,73,48],[73,49,73,61],[73,62,73,74],[104,41,104,48],[102,0,102,40]]}
[]
[null,null,null,null,null,null,null,null,null,null,null,null,null,null,null,null,null,null,null,null,null,null,null,null,null,null,null,null,null,null,null,null,null,null,null,null,null,null,null,null,null,null,null,null,null,null,null,null,null,null,null,null,null,null,null,null,null,null,null,null,null,null,null,null,null,null,null,null,null,null,null,null,null,null,null,null,null,null,null,null,null,null,null,null,null,null,null,null,null,"Приложение № 1 к Порядку"]
[null,null,null,null,null,null,null,null,null,null,null,null,null,null,null,null,null,null,null,null,null,null,null,null,null,null,null,null,null,null,null,null,null,null,null,null,null,null,null,null,null,null,null,null,null,null,null,null,null,null,null,null,null,null,null,null,null,null,null,null,null,null,null,null,null,null,null,null,null,null,null,null,null,null,null,null,null,null,null,null,null,null,null,null,null,null,"Утверждаю"]
[null,null,null,null,null,null,null,null,null,null,null,null,null,null,null,null,null,null,null,null,null,null,null,null,null,null,null,null,null,null,null,null,null,null,null,null,null,null,null,null,null,null,null,null,null,null,null,null,null,null,null,null,null,null,null,null,null,null,null,null,null,null,null,null,null,null,null,null,null,null,null,null,null,null,null,null,null,null,null,null,null,null,null,null,null,null,"Директор"]
[null,null,null,null,null,null,null,null,null,null,null,null,null,null,null,null,null,null,null,null,null,null,null,null,null,null,null,null,null,null,null,null,null,null,null,null,null,null,null,null,null,null,null,null,null,null,null,null,null,null,null,null,null,null,null,null,null,null,null,null,null,null,null,null,null,null,null,null,null,null,null,null,null,null,null,null,null,null,null,null,null,null,null,null,null,null,"(наименование должности уполномоченного лица)"]
[null,null,null,null,null,null,null,null,null,null,null,null,null,null,null,null,null,null,null,null,null,null,null,null,null,null,null,null,null,null,null,null,null,null,null,null,null,null,null,null,null,null,null,null,null,null,null,null,null,null,null,null,null,null,null,null,null,null,null,null,null,null,null,null,null,null,null,null,null,null,null,null,null,null,null,null,null,null,null,null,null,null,null,null,null,null,"МАУ \"МДЦ \"Восход\"\""]
[null,null,null,null,null,null,null,null,null,null,null,null,null,null,null,null,null,null,null,null,null,null,null,null,null,null,null,null,null,null,null,null,null,null,null,null,null,null,null,null,null,null,null,null,null,null,null,null,null,null,null,null,null,null,null,null,null,null,null,null,null,null,null,null,null,null,null,null,null,null,null,null,null,null,null,null,null,null,null,null,null,null,null,null,null,null,"(наименование Учредителя (Учреждения)"]
[null,null,null,null,null,null,null,null,null,null,null,null,null,null,null,null,null,null,null,null,null,null,null,null,null,null,null,null,null,null,null,null,null,null,null,null,null,null,null,null,null,null,null,null,null,null,null,null,null,null,null,null,null,null,null,null,null,null,null,null,null,null,null,null,null,null,null,null,null,null,null,null,null,null,null,null,null,null,null,null,null,null,null,null,null,null,null,null,null,"Герасимов С.В."]
[null,null,null,null,null,null,null,null,null,null,null,null,null,null,null,null,null,null,null,null,null,null,null,null,null,null,null,null,null,null,null,null,null,null,null,null,null,null,null,null,null,null,null,null,null,null,null,null,null,null,null,null,null,null,null,null,null,null,null,null,null,null,null,null,null,null,null,null,null,null,null,null,null,null,null,null,null,null,null,null,null,null,null,null,null,null,"(подпись)",null,null,"(расшифровка подписи)"]
[null,null,null,null,null,null,null,null,null,null,null,null,null,null,null,null,null,null,null,null,null,null,null,null,null,null,null,null,null,null,null,null,null,null,null,null,null,null,null,null,null,null,null,null,null,null,null,null,null,null,null,null,null,null,null,null,null,null,null,null,null,null,null,null,null,null,null,null,null,null,null,null,null,null,null,null,null,null,null,null,null,null,null,null,null,null,null,null,null,null,null,20,null,null,null,null,null," г."]
[]
[null,null,null,null,null,null,null,null,null,null,null,null,null,null,null,null,null,null,null,null,null,null,null,null,null,null,null,null,null,null,null,null,null,null,null,null,null,null,null,null,null,null,null,null,null,null,null,null,null,null,null,null,null,null,null,null,null,null,null,null,null,"План финансово-хозяйственной деятельности на",null,null,null," г."]
[null,null,null,null,null,null,null,null,null,null,null,null,null,null,null,null,"(на 20",null,null,null,null,null,null,"21",null,null,"г. и плановый период 20",null,null,null,null,null,null,null,null,null,null,null,null,null,null,null,null,null,null,null,null,null,"22",null,null,"и 20",null,null,null,null,"23",null,null," годов 1)",null,null,null,null,null,null,null,null,null,null,null,null,null,null,null,null,null,null,null,null,null,null,null,null,null,null,null,null,null,null,"Коды"]
[]
[null,null,null,null,null,null,null,null,null,null,null,null,null,null,null,null,null,null,null,null,null,null,null,null,"от \"",null,null,null,null,null,null,"\"",null,null,null,null,null,null,null,null,null,null,null,null,null,null,null,null,null,20,null,null,null,null,null," г.2",null,null,null,null,null,null,null,null,null,null,null,null,null,null,null,null,null,null,null,null,null,null,null,null,null,null,null,null,null,null,null,null,null,"Дата"]
["Орган, осуществляющий",null,null,null,null,null,null,null,null,null,null,null,null,null,null,null,null,null,null,null,null,null,null,null,null,null,null,null,null,null,null,null,null,null,null,null,null,null,null,null,null,null,null,null,null,null,null,null,null,null,null,null,null,null,null,null,null,null,null,null,null,null,null,null,null,null,null,null,null,null,null,null,null,null,null,null,null,null,null,null,null,null,null,null,null,null,null,null,"по Сводному реестру"]
["функции и полномочия учредителя",null,null,null,null,null,null,null,null,null,null,null,null,null,null,null,null,null,null,null,null,null,null,null,null,null,null,"Администрация муниципального образования Киришский муниципальный район Ленинградской области",null,null,null,null,null,null,null,null,null,null,null,null,null,null,null,null,null,null,null,null,null,null,null,null,null,null,null,null,null,null,null,null,null,null,null,null,null,null,null,null,null,null,null,null,null,null,null,null,null,null,null,null,null,null,null,null,null,null,null,null,"глава по БК"]
[null,null,null,null,null,null,null,null,null,null,null,null,null,null,null,null,null,null,null,null,null,null,null,null,null,null,null,null,null,null,null,null,null,null,null,null,null,null,null,null,null,null,null,null,null,null,null,null,null,null,null,null,null,null,null,null,null,null,null,null,null,null,null,null,null,null,null,null,null,null,null,null,null,null,null,null,null,null,null,null,null,null,null,null,null,null,null,null,"по Сводному реестру"]
[null,null,null,null,null,null,null,null,null,null,null,null,null,null,null,null,null,null,null,null,null,null,null,null,null,null,null,null,null,null,null,null,null,null,null,null,null,null,null,null,null,null,null,null,null,null,null,null,null,null,null,null,null,null,null,null,null,null,null,null,null,null,null,null,null,null,null,null,null,null,null,null,null,null,null,null,null,null,null,null,null,null,null,null,null,null,null,null,null,"ИНН","4708020562"]
["Учреждение",null,null,null,null,null,null,null,null,null,null,null,null,null,null,null,null,null,null,null,null,null,null,null,null,null,null,"Муниципальное автономное учреждение «Молодёжно-досуговый центр «Восход»  муниципального образования «Киришское городское поселение Киришского муниципального района Ленинградской области»\n(МАУ « МДЦ «ВОСХОД»)",null,null,null,null,null,null,null,null,null,null,null,null,null,null,null,null,null,null,null,null,null,null,null,null,null,null,null,null,null,null,null,null,null,null,null,null,null,null,null,null,null,null,null,null,null,null,null,null,null,null,null,null,null,null,null,null,null,null,null,null,null,"КПП","472701001"]
["Единица измерения: руб.",null,null,null,null,null,null,null,null,null,null,null,null,null,null,null,null,null,null,null,null,null,null,null,null,null,null,null,null,null,null,null,null,null,null,null,null,null,null,null,null,null,null,null,null,null,null,null,null,null,null,null,null,null,null,null,null,null,null,null,null,null,null,null,null,null,null,null,null,null,null,null,null,null,null,null,null,null,null,null,null,null,null,null,null,null,null,null,null,null,"383"]
["Раздел 1. Поступления и выплаты"]
[]
["Наименование показателя",null,null,null,null,null,null,null,null,null,null,null,null,null,null,null,null,null,null,null,null,null,null,null,null,null,null,null,null,null,null,null,null,null,null,null,null,null,null,null,null,"Код строки",null,null,null,null,null,null,null,"Код по бюджетной классификации Российской Федерации 3",null,null,null,null,null,null,null,null,null,null,null,null,"Аналитический код 4",null,null,null,null,null,null,null,null,null,null,null,null,"Сумма"]
[null,null,null,null,null,null,null,null,null,null,null,null,null,null,null,null,null,null,null,null,null,null,null,null,null,null,null,null,null,null,null,null,null,null,null,null,null,null,null,null,null,null,null,null,null,null,null,null,null,null,null,null,null,null,null,null,null,null,null,null,null,null,null,null,null,null,null,null,null,null,null,null,null,null,null,null,"на 20","21г.",null,null,null,"на 20","22г.",null,null,null,"на 20","23г.",null,null,"за пределами планового периода"]
[null,null,null,null,null,null,null,null,null,null,null,null,null,null,null,null,null,null,null,null,null,null,null,null,null,null,null,null,null,null,null,null,null,null,null,null,null,null,null,null,null,null,null,null,null,null,null,null,null,null,null,null,null,null,null,null,null,null,null,null,null,null,null,null,null,null,null,null,null,null,null,null,null,null,null,"текущий финансовый год",null,null,null,null,"первый год планового периода",null,null,null,null,"второй год планового периода"]
[null,null,null,null,null,null,null,null,null,null,null,null,null,null,null,null,null,null,null,null,null,null,null,null,null,null,null,null,null,null,null,null,null,null,null,null,null,null,null,null,null,null,null,null,null,null,null,null,null,null,null,null,null,null,null,null,null,null,null,null,null,null,null,null,null,null,null,null,null,null,null,null,null,null,null,"ВСЕГО","субсидии на финансовое обеспечение выполнения муниципального задания","целевые субсидии","субсидии на осуществление капитальных вложений","поступления от оказания услуг (выполнения работ) на платной основе и иной приносящей доход деятельности","ВСЕГО","субсидии на финансовое обеспечение выполнения муниципального задания","целевые субсидии","субсидии на осуществление капитальных вложений","поступления от оказания услуг (выполнения работ) на платной основе и иной приносящей доход деятельности","ВСЕГО","субсидии на финансовое обеспечение выполнения муниципального задания","целевые субсидии","субсидии на осуществление капитальных вложений","поступления от оказания услуг (выполнения работ) на платной основе и иной приносящей доход деятельности"]
["1",null,null,null,null,null,null,null,null,null,null,null,null,null,null,null,null,null,null,null,null,null,null,null,null,null,null,null,null,null,null,null,null,null,null,null,null,null,null,null,null,"2",null,null,null,null,null,null,null,"3",null,null,null,null,null,null,null,null,null,null,null,null,"4",null,null,null,null,null,null,null,null,null,null,null,null,"5","6","7","8","9","5","6","7","8","9","5","6","7","8","9","20"]
["Остаток средств на начало текущего финансового года 5",null,null,null,null,null,null,null,null,null,null,null,null,null,null,null,null,null,null,null,null,null,null,null,null,null,null,null,null,null,null,null,null,null,null,null,null,null,null,null,null,"0001",null,null,null,null,null,null,null,"х",null,null,null,null,null,null,null,null,null,null,null,null,"х",null,null,null,null,null,null,null,null,null,null,null,null,{"$f":"BY29+CB29","v":73395.92},11656.32,null,null,61739.6]
["Остаток средств на конец текущего финансового года 5",null,null,null,null,null,null,null,null,null,null,null,null,null,null,null,null,null,null,null,null,null,null,null,null,null,null,null,null,null,null,null,null,null,null,null,null,null,null,null,null,"0002",null,null,null,null,null,null,null,"х",null,null,null,null,null,null,null,null,null,null,null,null,"х"]
["Доходы, всего:",null,null,null,null,null,null,null,null,null,null,null,null,null,null,null,null,null,null,null,null,null,null,null,null,null,null,null,null,null,null,null,null,null,null,null,null,null,null,null,null,"1000",null,null,null,null,null,null,null,null,null,null,null,null,null,null,null,null,null,null,null,null,null,null,null,null,null,null,null,null,null,null,null,null,null,{"$f":"BY31+BZ31+CB31","v":25526428.240000002},{"$f":"BY35+BY32","v":19508858.800000001},{"$f":"BZ43","v":4545373.4000000004},null,{"$f":"CB35+CB32","v":1472196.04},{"$f":"CD31+CE31+CG31","v":29416253.59},{"$f":"CD35+CD43","v":20579779.710000001},{"$f":"CE43","v":1694972.45},null,{"$f":"CG37+CG32","v":7141501.4299999997},{"$f":"CI31+CJ31+CL31","v":29416253.59},{"$f":"CI36","v":20579779.710000001},{"$f":"CJ43","v":1694972.45},null,{"$f":"CL37+CL32","v":7141501.4299999997}]
["в том числе:\nдоходы от собственности, всего",null,null,null,null,null,null,null,null,null,null,null,null,null,null,null,null,null,null,null,null,null,null,null,null,null,null,null,null,null,null,null,null,null,null,null,null,null,null,null,null,"1100",null,null,null,null,null,null,null,"120",null,null,null,null,null,null,null,null,null,null,null,null,null,null,null,null,null,null,null,null,null,null,null,null,null,{"$f":"BX34","v":129095.32},null,null,null,{"$f":"CB34","v":129095.32},{"$f":"CC34","v":0},null,null,null,0,0,null,null,null,{"$f":"CL34","v":0}]
["в том числе:",null,null,null,null,null,null,null,null,null,null,null,null,null,null,null,null,null,null,null,null,null,null,null,null,null,null,null,null,null,null,null,null,null,null,null,null,null,null,null,null,"1110",null,null,null,null,null,null,null,"121"]
["доходы от операционной аренды",null,null,null,null,null,null,null,null,null,null,null,null,null,null,null,null,null,null,null,null,null,null,null,null,null,null,null,null,null,null,null,null,null,null,null,null,null,null,null,null,null,null,null,null,null,null,null,null,null,null,null,null,null,null,null,null,null,null,null,null,null,null,null,null,null,null,null,null,null,null,null,null,null,null,{"$f":"CB34","v":129095.32},null,null,null,129095.32]
["доходы от оказания услуг, работ, компенсации затрат учреждений, всего",null,null,null,null,null,null,null,null,null,null,null,null,null,null,null,null,null,null,null,null,null,null,null,null,null,null,null,null,null,null,null,null,null,null,null,null,null,null,null,null,"1200",null,null,null,null,null,null,null,"130",null,null,null,null,null,null,null,null,null,null,null,null,null,null,null,null,null,null,null,null,null,null,null,null,null,{"$f":"BX36+BX37+BX39","v":20851959.520000003},{"$f":"BY36","v":19508858.800000001},0,0,{"$f":"CB37+CB39","v":1343100.72},{"$f":"CC36+CC37","v":27721281.140000001},{"$f":"CD36","v":20579779.710000001},null,null,{"$f":"CG37","v":7141501.4299999997},{"$f":"CH36+CH37","v":27721281.140000001},{"$f":"CI36","v":20579779.710000001},null,null,{"$f":"CL36+CL37","v":7141501.4299999997}]
["в том числе:\nсубсидии на финансовое обеспечение выполнения муниципального задания за счет средств бюджета публично-правового образования, создавшего учреждение",null,null,null,null,null,null,null,null,null,null,null,null,null,null,null,null,null,null,null,null,null,null,null,null,null,null,null,null,null,null,null,null,null,null,null,null,null,null,null,null,"1210",null,null,null,null,null,null,null,"130",null,null,null,null,null,null,null,null,null,null,null,null,"0707 131",null,null,null,null,null,null,null,null,null,null,null,null,{"$f":"BY36","v":19508858.800000001},19508858.800000001,null,null,null,{"$f":"CD36","v":20579779.710000001},20579779.710000001,null,null,null,{"$f":"CI36","v":20579779.710000001},20579779.710000001]
["поступления от оказания услуг (выполнения работ) на платной основе и иной приносящей доход деятельности всего",null,null,null,null,null,null,null,null,null,null,null,null,null,null,null,null,null,null,null,null,null,null,null,null,null,null,null,null,null,null,null,null,null,null,null,null,null,null,null,null,"1220",null,null,null,null,null,null,null,"130",null,null,null,null,null,null,null,null,null,null,null,null,"0707 131",null,null,null,null,null,null,null,null,null,null,null,null,{"$f":"CB37","v":1132899.01},null,null,null,{"$f":"1130614.01+2285","v":1132899.01},{"$f":"CG37","v":7141501.4299999997},null,null,null,7141501.4299999997,{"$f":"CL37","v":7141501.4299999997},null,null,null,7141501.4299999997]
["поступления от компенсации затрат учреждений",null,null,null,null,null,null,null,null,null,null,null,null,null,null,null,null,null,null,null,null,null,null,null,null,null,null,null,null,null,null,null,null,null,null,null,null,null,null,null,null,"1230",null,null,null,null,null,null,null,"130",null,null,null,null,null,null,null,null,null,null,null,null,"0707 134",null,null,null,null,null,null,null,null,null,null,null,null,{"$f":"CB38","v":0},null,null,null,0]
["Доходы по условным арендным платежам",null,null,null,null,null,null,null,null,null,null,null,null,null,null,null,null,null,null,null,null,null,null,null,null,null,null,null,null,null,null,null,null,null,null,null,null,null,null,null,null,"1230",null,null,null,null,null,null,null,"130",null,null,null,null,null,null,null,null,null,null,null,null,"0707 135",null,null,null,null,null,null,null,null,null,null,null,null,{"$f":"CB39","v":210201.71},null,null,null,210201.71]
["доходы от штрафов, пеней, иных сумм принудительного изъятия, всего",null,null,null,null,null,null,null,null,null,null,null,null,null,null,null,null,null,null,null,null,null,null,null,null,null,null,null,null,null,null,null,null,null,null,null,null,null,null,null,null,"1300",null,null,null,null,null,null,null,"140"]
["в том числе:",null,null,null,null,null,null,null,null,null,null,null,null,null,null,null,null,null,null,null,null,null,null,null,null,null,null,null,null,null,null,null,null,null,null,null,null,null,null,null,null,"1310",null,null,null,null,null,null,null,"140"]
[]
["безвозмездные денежные поступления, всего",null,null,null,null,null,null,null,null,null,null,null,null,null,null,null,null,null,null,null,null,null,null,null,null,null,null,null,null,null,null,null,null,null,null,null,null,null,null,null,null,"1400",null,null,null,null,null,null,null,"150",null,null,null,null,null,null,null,null,null,null,null,null,null,null,null,null,null,null,null,null,null,null,null,null,null,{"$f":"BX44","v":4545373.4000000004},null,{"$f":"BZ44","v":4545373.4000000004},null,null,{"$f":"CC44","v":1694972.45},null,{"$f":"CE44","v":1694972.45},null,null,{"$f":"CH44","v":1694972.45},null,{"$f":"CJ44","v":1694972.45}]
["в том числе: целевые субсидии",null,null,null,null,null,null,null,null,null,null,null,null,null,null,null,null,null,null,null,null,null,null,null,null,null,null,null,null,null,null,null,null,null,null,null,null,null,null,null,null,"1410",null,null,null,null,null,null,null,"150",null,null,null,null,null,null,null,null,null,null,null,null,null,null,null,null,null,null,null,null,null,null,null,null,null,{"$f":"SUM(BX45:BX49)","v":4545373.4000000004},null,{"$f":"SUM(BZ45:BZ49)","v":4545373.4000000004},null,null,{"$f":"SUM(CC45:CC49)","v":1694972.45},null,{"$f":"SUM(CE45:CE49)","v":1694972.45},null,null,{"$f":"SUM(CH45:CH49)","v":1694972.45},null,{"$f":"SUM(CJ45:CJ49)","v":1694972.45}]
["Работы с детьми и молодежью в подведомственных учреждениях (ремонт имущества и благоустройство территории) ",null,null,null,null,null,null,null,null,null,null,null,null,null,null,null,null,null,null,null,null,null,null,null,null,null,null,null,null,null,null,null,null,null,null,null,null,null,null,null,null,null,null,null,null,null,null,null,null,"150",null,null,null,null,null,null,null,null,null,null,null,null,"0707 152",null,null,null,null,null,null,null,null,null,null,null,null,{"$f":"BZ45","v":3600406.8},null,{"$f":"300406.8+3300000","v":3600406.8},null,null,{"$f":"CE45","v":397448.8},null,397448.8,null,null,{"$f":"CJ45","v":397448.8},null,397448.8]
["Работа с детьми и молодежью в подведомственных учреждениях (приобретение основных средств и материальных запасов)",null,null,null,null,null,null,null,null,null,null,null,null,null,null,null,null,null,null,null,null,null,null,null,null,null,null,null,null,null,null,null,null,null,null,null,null,null,null,null,null,null,null,null,null,null,null,null,null,"150",null,null,null,null,null,null,null,null,null,null,null,null,"0707 152",null,null,null,null,null,null,null,null,null,null,null,null,{"$f":"BZ46","v":271579.25},null,271579.25,null,null,{"$f":"CE46","v":614769.25},null,614769.25,null,null,{"$f":"CJ46","v":614769.25},null,614769.25]
["Поддержка деятельности молодежных общественных организаций, объединений, инициатив и развитие добровольческого (волонтерского) движения, содействию трудовой адаптации и занятости молодежи (Губернаторский молодежный отряд)",null,null,null,null,null,null,null,null,null,null,null,null,null,null,null,null,null,null,null,null,null,null,null,null,null,null,null,null,null,null,null,null,null,null,null,null,null,null,null,null,null,null,null,null,null,null,null,null,"150",null,null,null,null,null,null,null,null,null,null,null,null,"0707 152",null,null,null,null,null,null,null,null,null,null,null,null,{"$f":"BZ47","v":268532.05},null,268532.05,null,null,{"$f":"CE47","v":268535},null,268535,null,null,{"$f":"CJ47","v":268535},null,268535]
["Работы с молодежью по различным направлениям молодежной политики (Губернаторский молодежный отряд)",null,null,null,null,null,null,null,null,null,null,null,null,null,null,null,null,null,null,null,null,null,null,null,null,null,null,null,null,null,null,null,null,null,null,null,null,null,null,null,null,null,null,null,null,null,null,null,null,"150",null,null,null,null,null,null,null,null,null,null,null,null,"0707 152",null,null,null,null,null,null,null,null,null,null,null,null,{"$f":"BZ48","v":182419.4},null,182419.4,null,null,{"$f":"CE48","v":182419.4},null,182419.4,null,null,{"$f":"CJ48","v":182419.4},null,182419.4]
["Реализация комплекса мер по сохранению исторической памяти (церемония захоронения останков погибших защитников Отечества)",null,null,null,null,null,null,null,null,null,null,null,null,null,null,null,null,null,null,null,null,null,null,null,null,null,null,null,null,null,null,null,null,null,null,null,null,null,null,null,null,null,null,null,null,null,null,null,null,"150",null,null,null,null,null,null,null,null,null,null,null,null,"0707 152",null,null,null,null,null,null,null,null,null,null,null,null,{"$f":"BZ49","v":222435.9},null,222435.9,null,null,231800,null,231800,null,null,231800,null,231800]
["субсидии на осуществление капитальных вложений",null,null,null,null,null,null,null,null,null,null,null,null,null,null,null,null,null,null,null,null,null,null,null,null,null,null,null,null,null,null,null,null,null,null,null,null,null,null,null,null,"1420",null,null,null,null,null,null,null,"150"]
[]
["прочие доходы, всего",null,null,null,null,null,null,null,null,null,null,null,null,null,null,null,null,null,null,null,null,null,null,null,null,null,null,null,null,null,null,null,null,null,null,null,null,null,null,null,null,"1500",null,null,null,null,null,null,null,"180"]
["в том числе:"]
["доходы от операций с активами, всего",null,null,null,null,null,null,null,null,null,null,null,null,null,null,null,null,null,null,null,null,null,null,null,null,null,null,null,null,null,null,null,null,null,null,null,null,null,null,null,null,"1900",null,null,null,null,null,null,null,"510"]
["в том числе:"]
[]
[]
["прочие поступления, всего 6",null,null,null,null,null,null,null,null,null,null,null,null,null,null,null,null,null,null,null,null,null,null,null,null,null,null,null,null,null,null,null,null,null,null,null,null,null,null,null,null,"1980",null,null,null,null,null,null,null,"х"]
["из них:\nувеличение остатков денежных средств за счет возврата дебиторской задолженности прошлых лет",null,null,null,null,null,null,null,null,null,null,null,null,null,null,null,null,null,null,null,null,null,null,null,null,null,null,null,null,null,null,null,null,null,null,null,null,null,null,null,null,"1981",null,null,null,null,null,null,null,"510",null,null,null,null,null,null,null,null,null,null,null,null,null,null,null,null,null,null,null,null,null,null,null,null,null,null,null,null,null,null,null,null,null,null,null,null,null,null,null,null,"х"]
[]
["Расходы, всего",null,null,null,null,null,null,null,null,null,null,null,null,null,null,null,null,null,null,null,null,null,null,null,null,null,null,null,null,null,null,null,null,null,null,null,null,null,null,null,null,"2000",null,null,null,null,null,null,null,"х",null,null,null,null,null,null,null,null,null,null,null,null,null,null,null,null,null,null,null,null,null,null,null,null,null,{"$f":"BY61+BZ61+CA61+CB61","v":25551757.160000004},{"$f":"BY62+BY86+BY102","v":19520515.120000001},{"$f":"BZ62+BZ86+BZ102","v":4545373.4000000004},null,{"$f":"CB62+CB79+CB86+CB102+CB99","v":1485868.6400000001},{"$f":"CD61+CE61+CF61+CG61","v":29266253.59},{"$f":"CD62+CD86+CD102","v":20579779.710000001},{"$f":"CE62+CE86+CE102","v":1694972.45},null,{"$f":"CG62+CG86+CG102+CG99+0.01","v":6991501.4300000006},{"$f":"CI61+CJ61+CK61+CL61","v":29266253.59},{"$f":"CI62+CI86+CI102","v":20579779.710000001},{"$f":"CJ62+CJ86+CJ102","v":1694972.45},null,{"$f":"CL62+CL86+CL102+CL99+0.01","v":6991501.4300000006}]
["в том числе:\nна выплаты персоналу, всего",null,null,null,null,null,null,null,null,null,null,null,null,null,null,null,null,null,null,null,null,null,null,null,null,null,null,null,null,null,null,null,null,null,null,null,null,null,null,null,null,"2100",null,null,null,null,null,null,null,"х",null,null,null,null,null,null,null,null,null,null,null,null,null,null,null,null,null,null,null,null,null,null,null,null,null,{"$f":"BY62+BZ62+CA62+CB62","v":16486717.33},{"$f":"BY63+BY64+BY67+BY68+BY79+BY69+BY70","v":15814346.93},{"$f":"BZ63+BZ64+BZ67+BZ68+BZ69","v":181019.4},null,{"$f":"CB63+CB64+CB67+CB68+CB69","v":491351},{"$f":"CD62+CE62+CF62+CG62+0.01","v":21481079.770000003},{"$f":"CD63+CD64+CD67+CD68+CD69","v":16384715.68},{"$f":"CE63+CE64+CE67+CE68+CE69","v":181019.4},null,{"$f":"CG63+CG64+CG67+CG68+CG79-0.01+CG69","v":4915344.6800000006},{"$f":"CH63+CH64+CH67+CH68+CH69","v":21418079.77},{"$f":"CI63+CI64+CI67+CI68+CI69","v":16384715.68},{"$f":"CJ63+CJ64+CJ67+CJ68+CJ69","v":181019.4},null,{"$f":"CL63+CL64+CL67+CL68+CL79-0.01+CL69","v":4915344.6800000006},"х"]
["в том числе:\nоплата труда",null,null,null,null,null,null,null,null,null,null,null,null,null,null,null,null,null,null,null,null,null,null,null,null,null,null,null,null,null,null,null,null,null,null,null,null,null,null,null,null,"2110",null,null,null,null,null,null,null,"111",null,null,null,null,null,null,null,null,null,null,null,null,"0707 211",null,null,null,null,null,null,null,null,null,null,null,null,{"$f":"BY63+CB63+BZ63","v":10990127.180000002},10500595.380000001,139031.79999999999,null,350500,{"$f":"CD63+CG63+CE63","v":14819507.430000002},{"$f":"10979934.38+0.01","v":10979934.390000001},139031.79999999999,null,3700541.24,{"$f":"CI63+CL63+CJ63","v":14819507.430000002},{"$f":"10979934.38+0.01","v":10979934.390000001},139031.79999999999,null,3700541.24,"х"]
["\nоплата труда",null,null,null,null,null,null,null,null,null,null,null,null,null,null,null,null,null,null,null,null,null,null,null,null,null,null,null,null,null,null,null,null,null,null,null,null,null,null,null,null,"2111",null,null,null,null,null,null,null,"111",null,null,null,null,null,null,null,null,null,null,null,null,"0801 211",null,null,null,null,null,null,null,null,null,null,null,null,{"$f":"BY64+CB64","v":1576476},1576476,null,null,null,{"$f":"CD64+CG64","v":1604332.65},1604332.65,null,null,null,{"$f":"CI64+CL64","v":1604332.65},1604332.65,null,null,null,"х"]
["прочие выплаты персоналу, в том числе компенсационного характера",null,null,null,null,null,null,null,null,null,null,null,null,null,null,null,null,null,null,null,null,null,null,null,null,null,null,null,null,null,null,null,null,null,null,null,null,null,null,null,null,"2120",null,null,null,null,null,null,null,"112",null,null,null,null,null,null,null,null,null,null,null,null,null,null,null,null,null,null,null,null,null,null,null,null,null,null,null,null,null,null,null,null,null,null,null,null,null,null,null,null,"х"]
["иные выплаты, за исключением фонда оплаты труда учреждения, для выполнения отдельных полномочий",null,null,null,null,null,null,null,null,null,null,null,null,null,null,null,null,null,null,null,null,null,null,null,null,null,null,null,null,null,null,null,null,null,null,null,null,null,null,null,null,"2130",null,null,null,null,null,null,null,"113",null,null,null,null,null,null,null,null,null,null,null,null,null,null,null,null,null,null,null,null,null,null,null,null,null,null,null,null,null,null,null,null,null,null,null,null,null,null,null,null,"х"]
["взносы по обязательному социальному страхованию на выплаты по оплате труда работников и иные выплаты работникам учреждений, всего",null,null,null,null,null,null,null,null,null,null,null,null,null,null,null,null,null,null,null,null,null,null,null,null,null,null,null,null,null,null,null,null,null,null,null,null,null,null,null,null,"2140",null,null,null,null,null,null,null,"119",null,null,null,null,null,null,null,null,null,null,null,null,"0707 213",null,null,null,null,null,null,null,null,null,null,null,null,{"$f":"BY67+CB67+BZ67","v":3319018.4},{"$f":"3171179.78+0.02","v":3171179.8},41987.6,null,105851,{"$f":"CD67+CG67+CE67","v":4475491.2399999993},3315940.19,41987.6,null,1117563.45,{"$f":"CI67+CL67+CJ67","v":4475491.2399999993},3315940.19,41987.6,null,1117563.45,"х"]
["взносы по обязательному социальному страхованию на выплаты по оплате труда работников и иные выплаты работникам учреждений, всего",null,null,null,null,null,null,null,null,null,null,null,null,null,null,null,null,null,null,null,null,null,null,null,null,null,null,null,null,null,null,null,null,null,null,null,null,null,null,null,null,"2141",null,null,null,null,null,null,null,"119",null,null,null,null,null,null,null,null,null,null,null,null,"0801 213",null,null,null,null,null,null,null,null,null,null,null,null,{"$f":"BY68+CB68","v":476095.75},476095.75,null,null,null,{"$f":"CD68+CG68","v":484508.45},484508.45,null,null,null,{"$f":"CI68+CL68","v":484508.45},484508.45,null,null,null,"х"]
["социальные пособия и компенсации персоналу в денежной форме",null,null,null,null,null,null,null,null,null,null,null,null,null,null,null,null,null,null,null,null,null,null,null,null,null,null,null,null,null,null,null,null,null,null,null,null,null,null,null,null,"2213",null,null,null,null,null,null,null,"111",null,null,null,null,null,null,null,null,null,null,null,null,"0707 266",null,null,null,null,null,null,null,null,null,null,null,null,{"$f":"BY69+CB69","v":125000},90000,null,null,35000,{"$f":"CD69+CG69","v":34240},null,null,null,34240,{"$f":"CI69+CL69","v":34240},null,null,null,34240]
["Пособие по социальной помощи, выплачиваемые работодателями, нанимателями бывшим работникам в натуральной форме",null,null,null,null,null,null,null,null,null,null,null,null,null,null,null,null,null,null,null,null,null,null,null,null,null,null,null,null,null,null,null,null,null,null,null,null,null,null,null,null,"2214",null,null,null,null,null,null,null,"119",null,null,null,null,null,null,null,null,null,null,null,null,"0707 265",null,null,null,null,null,null,null,null,null,null,null,null,{"$f":"BY70+CB70","v":0},0,null,null,null,{"$f":"CD70+CG70","v":34240},null,null,null,34240,{"$f":"CI70+CL70","v":34240},null,null,null,34240]
["в том числе:\nна выплаты по оплате труда",null,null,null,null,null,null,null,null,null,null,null,null,null,null,null,null,null,null,null,null,null,null,null,null,null,null,null,null,null,null,null,null,null,null,null,null,null,null,null,null,"2141",null,null,null,null,null,null,null,"119",null,null,null,null,null,null,null,null,null,null,null,null,null,null,null,null,null,null,null,null,null,null,null,null,null,null,null,null,null,null,null,null,null,null,null,null,null,null,null,null,"х"]
["на иные выплаты работникам",null,null,null,null,null,null,null,null,null,null,null,null,null,null,null,null,null,null,null,null,null,null,null,null,null,null,null,null,null,null,null,null,null,null,null,null,null,null,null,null,"2142",null,null,null,null,null,null,null,"119",null,null,null,null,null,null,null,null,null,null,null,null,null,null,null,null,null,null,null,null,null,null,null,null,null,null,null,null,null,null,null,null,null,null,null,null,null,null,null,null,"х"]
["денежное довольствие военнослужащих и сотрудников, имеющих специальные звания",null,null,null,null,null,null,null,null,null,null,null,null,null,null,null,null,null,null,null,null,null,null,null,null,null,null,null,null,null,null,null,null,null,null,null,null,null,null,null,null,"2150",null,null,null,null,null,null,null,"131",null,null,null,null,null,null,null,null,null,null,null,null,null,null,null,null,null,null,null,null,null,null,null,null,null,null,null,null,null,null,null,null,null,null,null,null,null,null,null,null,"х"]
["расходы на выплаты военнослужащим и сотрудникам, имеющим специальные звания, зависящие от размера денежного довольствия",null,null,null,null,null,null,null,null,null,null,null,null,null,null,null,null,null,null,null,null,null,null,null,null,null,null,null,null,null,null,null,null,null,null,null,null,null,null,null,null,"2160",null,null,null,null,null,null,null,"133"]
["иные выплаты военнослужащим и сотрудникам, имеющим специальные звания",null,null,null,null,null,null,null,null,null,null,null,null,null,null,null,null,null,null,null,null,null,null,null,null,null,null,null,null,null,null,null,null,null,null,null,null,null,null,null,null,"2170",null,null,null,null,null,null,null,"134",null,null,null,null,null,null,null,null,null,null,null,null,null,null,null,null,null,null,null,null,null,null,null,null,null,null,null,null,null,null,null,null,null,null,null,null,null,null,null,null,"х"]
["страховые взносы на обязательное социальное страхование в части выплат персоналу, подлежащих обложению страховыми взносами",null,null,null,null,null,null,null,null,null,null,null,null,null,null,null,null,null,null,null,null,null,null,null,null,null,null,null,null,null,null,null,null,null,null,null,null,null,null,null,null,"2180",null,null,null,null,null,null,null,"139",null,null,null,null,null,null,null,null,null,null,null,null,null,null,null,null,null,null,null,null,null,null,null,null,null,null,null,null,null,null,null,null,null,null,null,null,null,null,null,null,"х"]
["в том числе:\nна оплату труда стажеров",null,null,null,null,null,null,null,null,null,null,null,null,null,null,null,null,null,null,null,null,null,null,null,null,null,null,null,null,null,null,null,null,null,null,null,null,null,null,null,null,"2181",null,null,null,null,null,null,null,"139",null,null,null,null,null,null,null,null,null,null,null,null,null,null,null,null,null,null,null,null,null,null,null,null,null,null,null,null,null,null,null,null,null,null,null,null,null,null,null,null,"х"]
["на иные выплаты гражданским лицам (денежное содержание)",null,null,null,null,null,null,null,null,null,null,null,null,null,null,null,null,null,null,null,null,null,null,null,null,null,null,null,null,null,null,null,null,null,null,null,null,null,null,null,null,"2172",null,null,null,null,null,null,null,"139",null,null,null,null,null,null,null,null,null,null,null,null,null,null,null,null,null,null,null,null,null,null,null,null,null,null,null,null,null,null,null,null,null,null,null,null,null,null,null,null,"х"]
["социальные и иные выплаты населению, всего",null,null,null,null,null,null,null,null,null,null,null,null,null,null,null,null,null,null,null,null,null,null,null,null,null,null,null,null,null,null,null,null,null,null,null,null,null,null,null,null,"2200",null,null,null,null,null,null,null,"300",null,null,null,null,null,null,null,null,null,null,null,null,null,null,null,null,null,null,null,null,null,null,null,null,null,{"$f":"BY79+CB79","v":60387.48},null,null,null,{"$f":"CB80","v":60387.48},{"$f":"CD79+CG79","v":63000},null,null,null,{"$f":"CG80","v":63000},{"$f":"CI79+CL79","v":63000},null,null,null,{"$f":"CL80","v":63000},"х"]
["в том числе:\nсоциальные выплаты гражданам, кроме публичных нормативных социальных выплат",null,null,null,null,null,null,null,null,null,null,null,null,null,null,null,null,null,null,null,null,null,null,null,null,null,null,null,null,null,null,null,null,null,null,null,null,null,null,null,null,"2210",null,null,null,null,null,null,null,"320",null,null,null,null,null,null,null,null,null,null,null,null,null,null,null,null,null,null,null,null,null,null,null,null,null,{"$f":"CB80","v":60387.48},null,null,null,{"$f":"CB82","v":60387.48},63000,null,null,null,63000,63000,null,null,null,63000,"х"]
["из них:\nпособия, компенсации и иные социальные выплаты гражданам, кроме публичных нормативных обязательств",null,null,null,null,null,null,null,null,null,null,null,null,null,null,null,null,null,null,null,null,null,null,null,null,null,null,null,null,null,null,null,null,null,null,null,null,null,null,null,null,"2211",null,null,null,null,null,null,null,null,null,null,null,null,null,null,null,null,null,null,null,null,null,null,null,null,null,null,null,null,null,null,null,null,null,null,null,null,null,null,null,null,null,null,null,null,null,null,null,null,"х"]
["пенсии, пособия, выплачиваемые работодателями, нанимателями бывшим работникам",null,null,null,null,null,null,null,null,null,null,null,null,null,null,null,null,null,null,null,null,null,null,null,null,null,null,null,null,null,null,null,null,null,null,null,null,null,null,null,null,"2212",null,null,null,null,null,null,null,"321",null,null,null,null,null,null,null,null,null,null,null,null,"0707 264",null,null,null,null,null,null,null,null,null,null,null,null,{"$f":"CB82","v":60387.48},null,null,null,60387.48,63000,null,null,null,63000,63000,null,null,null,63000,"х"]
["выплата стипендий, осуществление иных расходов на социальную поддержку обучающихся за счет средств стипендиального фонда",null,null,null,null,null,null,null,null,null,null,null,null,null,null,null,null,null,null,null,null,null,null,null,null,null,null,null,null,null,null,null,null,null,null,null,null,null,null,null,null,"2220",null,null,null,null,null,null,null,"340",null,null,null,null,null,null,null,null,null,null,null,null,null,null,null,null,null,null,null,null,null,null,null,null,null,null,null,null,null,null,null,null,null,null,null,null,null,null,null,null,"х"]
["на премирование физических лиц за достижения в области культуры, искусства, образования, науки и техники, а также на предоставление грантов с целью поддержки проектов в области науки, культуры и искусства",null,null,null,null,null,null,null,null,null,null,null,null,null,null,null,null,null,null,null,null,null,null,null,null,null,null,null,null,null,null,null,null,null,null,null,null,null,null,null,null,"2230",null,null,null,null,null,null,null,"350",null,null,null,null,null,null,null,null,null,null,null,null,null,null,null,null,null,null,null,null,null,null,null,null,null,null,null,null,null,null,null,null,null,null,null,null,null,null,null,null,"х"]
["иные выплаты населению",null,null,null,null,null,null,null,null,null,null,null,null,null,null,null,null,null,null,null,null,null,null,null,null,null,null,null,null,null,null,null,null,null,null,null,null,null,null,null,null,"2240",null,null,null,null,null,null,null,"360",null,null,null,null,null,null,null,null,null,null,null,null,null,null,null,null,null,null,null,null,null,null,null,null,null,null,null,null,null,null,null,null,null,null,null,null,null,null,null,null,"х"]
["уплата налогов, сборов и иных платежей, всего",null,null,null,null,null,null,null,null,null,null,null,null,null,null,null,null,null,null,null,null,null,null,null,null,null,null,null,null,null,null,null,null,null,null,null,null,null,null,null,null,"2300",null,null,null,null,null,null,null,"850",null,null,null,null,null,null,null,null,null,null,null,null,null,null,null,null,null,null,null,null,null,null,null,null,null,{"$f":"CB86","v":1145.8399999999999},null,null,null,{"$f":"CB87+CB88+CB89+CB90","v":1145.8399999999999},null,null,null,null,null,null,null,null,null,null,"х"]
["из них:\nналог на имущество организаций и земельный налог",null,null,null,null,null,null,null,null,null,null,null,null,null,null,null,null,null,null,null,null,null,null,null,null,null,null,null,null,null,null,null,null,null,null,null,null,null,null,null,null,"2310",null,null,null,null,null,null,null,"851",null,null,null,null,null,null,null,null,null,null,null,null,null,null,null,null,null,null,null,null,null,null,null,null,null,null,null,null,null,null,null,null,null,null,null,null,null,null,null,null,"х"]
["налоги, пошлины и сборы\nналог на имущество организаций и земельный налог",null,null,null,null,null,null,null,null,null,null,null,null,null,null,null,null,null,null,null,null,null,null,null,null,null,null,null,null,null,null,null,null,null,null,null,null,null,null,null,null,"2320",null,null,null,null,null,null,null,"852",null,null,null,null,null,null,null,null,null,null,null,null,null,null,null,null,null,null,null,null,null,null,null,null,null,null,null,null,null,null,null,null,null,null,null,null,null,null,null,null,"х"]
["иные налоги (включаемые в состав расходов) в бюджеты бюджетной системы Российской Федерации, а также государственная пошлина",null,null,null,null,null,null,null,null,null,null,null,null,null,null,null,null,null,null,null,null,null,null,null,null,null,null,null,null,null,null,null,null,null,null,null,null,null,null,null,null,"2320",null,null,null,null,null,null,null,"852",null,null,null,null,null,null,null,null,null,null,null,null,null,null,null,null,null,null,null,null,null,null,null,null,null,null,null,null,null,null,null,null,null,null,null,null,null,null,null,null,"х"]
["уплата штрафов (в том числе административных), пеней, иных платежей",null,null,null,null,null,null,null,null,null,null,null,null,null,null,null,null,null,null,null,null,null,null,null,null,null,null,null,null,null,null,null,null,null,null,null,null,null,null,null,null,"2330",null,null,null,null,null,null,null,"853",null,null,null,null,null,null,null,null,null,null,null,null,"0707 292",null,null,null,null,null,null,null,null,null,null,null,null,{"$f":"CB90","v":1145.8399999999999},null,null,null,1145.8399999999999,null,null,null,null,null,null,null,null,null,null,"х"]
["безвозмездные перечисления организациям и физическим лицам, всего",null,null,null,null,null,null,null,null,null,null,null,null,null,null,null,null,null,null,null,null,null,null,null,null,null,null,null,null,null,null,null,null,null,null,null,null,null,null,null,null,"2400",null,null,null,null,null,null,null,"х",null,null,null,null,null,null,null,null,null,null,null,null,null,null,null,null,null,null,null,null,null,null,null,null,null,null,null,null,null,null,null,null,null,null,null,null,null,null,null,null,"х"]
["из них: гранты, предоставляемые бюджетным учреждениям",null,null,null,null,null,null,null,null,null,null,null,null,null,null,null,null,null,null,null,null,null,null,null,null,null,null,null,null,null,null,null,null,null,null,null,null,null,null,null,null,"2410",null,null,null,null,null,null,null,"613",null,null,null,null,null,null,null,null,null,null,null,null,null,null,null,null,null,null,null,null,null,null,null,null,null,null,null,null,null,null,null,null,null,null,null,null,null,null,null,null,"х"]
["гранты, предоставляемые автономным учреждениям",null,null,null,null,null,null,null,null,null,null,null,null,null,null,null,null,null,null,null,null,null,null,null,null,null,null,null,null,null,null,null,null,null,null,null,null,null,null,null,null,"2420",null,null,null,null,null,null,null,"623",null,null,null,null,null,null,null,null,null,null,null,null,null,null,null,null,null,null,null,null,null,null,null,null,null,null,null,null,null,null,null,null,null,null,null,null,null,null,null,null,"х"]
["гранты, предоставляемые иным некоммерческим организациям \n(за исключением бюджетных и автономных учреждений)\n",null,null,null,null,null,null,null,null,null,null,null,null,null,null,null,null,null,null,null,null,null,null,null,null,null,null,null,null,null,null,null,null,null,null,null,null,null,null,null,null,"2430",null,null,null,null,null,null,null,"634",null,null,null,null,null,null,null,null,null,null,null,null,null,null,null,null,null,null,null,null,null,null,null,null,null,null,null,null,null,null,null,null,null,null,null,null,null,null,null,null,"х"]
["гранты, предоставляемые другим организациям и физическим лицам",null,null,null,null,null,null,null,null,null,null,null,null,null,null,null,null,null,null,null,null,null,null,null,null,null,null,null,null,null,null,null,null,null,null,null,null,null,null,null,null,"2440",null,null,null,null,null,null,null,"810"]
["взносы в международные организации",null,null,null,null,null,null,null,null,null,null,null,null,null,null,null,null,null,null,null,null,null,null,null,null,null,null,null,null,null,null,null,null,null,null,null,null,null,null,null,null,"2450",null,null,null,null,null,null,null,"862"]
["платежи в целях обеспечения реализации соглашений с правительствами иностранных государств и международными организациями",null,null,null,null,null,null,null,null,null,null,null,null,null,null,null,null,null,null,null,null,null,null,null,null,null,null,null,null,null,null,null,null,null,null,null,null,null,null,null,null,"2460",null,null,null,null,null,null,null,"863"]
[]
["прочие выплаты (кроме выплат на закупку товаров, работ, услуг)",null,null,null,null,null,null,null,null,null,null,null,null,null,null,null,null,null,null,null,null,null,null,null,null,null,null,null,null,null,null,null,null,null,null,null,null,null,null,null,null,"2500",null,null,null,null,null,null,null,"х",null,null,null,null,null,null,null,null,null,null,null,null,null,null,null,null,null,null,null,null,null,null,null,null,null,{"$f":"BX101","v":39680},null,null,null,{"$f":"CB101","v":39680},null,null,null,null,{"$f":"CG101","v":20000},null,null,null,null,{"$f":"CL101","v":20000},"х"]
["исполнение судебных актов Российской Федерации и мировых соглашений по возмещению вреда, причиненного в результате деятельности учреждения",null,null,null,null,null,null,null,null,null,null,null,null,null,null,null,null,null,null,null,null,null,null,null,null,null,null,null,null,null,null,null,null,null,null,null,null,null,null,null,null,"2520",null,null,null,null,null,null,null,"831",null,null,null,null,null,null,null,null,null,null,null,null,null,null,null,null,null,null,null,null,null,null,null,null,null,null,null,null,null,null,null,null,null,null,null,null,null,null,null,null,"х"]
["прочие расходы",null,null,null,null,null,null,null,null,null,null,null,null,null,null,null,null,null,null,null,null,null,null,null,null,null,null,null,null,null,null,null,null,null,null,null,null,null,null,null,null,"2521",null,null,null,null,null,null,null,"112",null,null,null,null,null,null,null,null,null,null,null,null,"0707 226",null,null,null,null,null,null,null,null,null,null,null,null,{"$f":"CB101","v":39680},null,null,null,39680,null,null,null,null,20000,null,null,null,null,20000,"х"]
["расходы на закупку товаров, работ, услуг, всего 7",null,null,null,null,null,null,null,null,null,null,null,null,null,null,null,null,null,null,null,null,null,null,null,null,null,null,null,null,null,null,null,null,null,null,null,null,null,null,null,null,"2600",null,null,null,null,null,null,null,"х",null,null,null,null,null,null,null,null,null,null,null,null,null,null,null,null,null,null,null,null,null,null,null,null,null,{"$f":"BX104+BX131+BX132+BX133","v":8963826.5099999979},{"$f":"BY104+BY132+BY133","v":3706168.1900000004},{"$f":"BZ104","v":4364354},null,{"$f":"CB104+CB131+CB132+CB133","v":893304.32000000007},{"$f":"CC104+CC131+CC132+CC133","v":7765173.8200000003},{"$f":"CD104+CD131+CD132+CD133","v":4195064.03},{"$f":"CE104+CE131+CE132+CE133","v":1513953.05},null,{"$f":"CG104+CG131+CG132+CG133","v":2056156.74},{"$f":"CH104+CH132+CH133","v":7765173.8200000003},{"$f":"CI104+CI132+CI133","v":4195064.03},1513953.05,null,{"$f":"CL104+CL132+CL133","v":2056156.74}]
["в том числе: закупку научно-исследовательских, опытно-конструкторских и технологических работ",null,null,null,null,null,null,null,null,null,null,null,null,null,null,null,null,null,null,null,null,null,null,null,null,null,null,null,null,null,null,null,null,null,null,null,null,null,null,null,null,"2610",null,null,null,null,null,null,null,"241"]
["прочую закупку товаров, работ и услуг",null,null,null,null,null,null,null,null,null,null,null,null,null,null,null,null,null,null,null,null,null,null,null,null,null,null,null,null,null,null,null,null,null,null,null,null,null,null,null,null,"2640",null,null,null,null,null,null,null,"244",null,null,null,null,null,null,null,null,null,null,null,null,null,null,null,null,null,null,null,null,null,null,null,null,null,{"$f":"SUM(BX106:BX130)","v":7943355.6599999992},{"$f":"SUM(BY106:BY129)","v":2888434.2100000004},{"$f":"SUM(BZ106:BZ129)","v":4364354},null,690567.45000000007,6663627.8700000001,3177615.02,1513953.05,null,1972059.8,6663627.8700000001,3177615.02,1513953.05,null,1972059.8]
["из них:"]
["услуги связи",null,null,null,null,null,null,null,null,null,null,null,null,null,null,null,null,null,null,null,null,null,null,null,null,null,null,null,null,null,null,null,null,null,null,null,null,null,null,null,null,null,null,null,null,null,null,null,null,"244",null,null,null,null,null,null,null,null,null,null,null,null,"0707  221",null,null,null,null,null,null,null,null,null,null,null,null,{"$f":"BY106+BZ106+CA106+CB106","v":191154.24},153154.23999999999,null,null,38000,{"$f":"CD106+CE106+CF106+CG106","v":187403.25999999998},139875.57999999999,null,null,47527.68,{"$f":"CI106+CJ106+CK106+CL106","v":187403.25999999998},139875.57999999999,null,null,47527.68]
["услуги связи",null,null,null,null,null,null,null,null,null,null,null,null,null,null,null,null,null,null,null,null,null,null,null,null,null,null,null,null,null,null,null,null,null,null,null,null,null,null,null,null,null,null,null,null,null,null,null,null,"244",null,null,null,null,null,null,null,null,null,null,null,null,"0801  221",null,null,null,null,null,null,null,null,null,null,null,null,{"$f":"BY107+BZ107+CA107+CB107","v":16992.95},16992.95,null,null,null,{"$f":"CD107+CE107+CF107+CG107","v":33516.74},33516.74,null,null,null,{"$f":"CI107+CJ107+CK107+CL107","v":33516.74},33516.74]
["транспортные услуги",null,null,null,null,null,null,null,null,null,null,null,null,null,null,null,null,null,null,null,null,null,null,null,null,null,null,null,null,null,null,null,null,null,null,null,null,null,null,null,null,null,null,null,null,null,null,null,null,"244",null,null,null,null,null,null,null,null,null,null,null,null,"0707  222",null,null,null,null,null,null,null,null,null,null,null,null,164210,75710,88500,null,0,265058.63,150158.63,88500,null,26400,265058.63,150158.63,88500,null,26400]
["транспортные услуги",null,null,null,null,null,null,null,null,null,null,null,null,null,null,null,null,null,null,null,null,null,null,null,null,null,null,null,null,null,null,null,null,null,null,null,null,null,null,null,null,null,null,null,null,null,null,null,null,"244",null,null,null,null,null,null,null,null,null,null,null,null,"0801  222",null,null,null,null,null,null,null,null,null,null,null,null,75950,75950,null,null,null,70557.37,70557.37,null,null,null,70557.37,70557.37]
["коммунальные услуги",null,null,null,null,null,null,null,null,null,null,null,null,null,null,null,null,null,null,null,null,null,null,null,null,null,null,null,null,null,null,null,null,null,null,null,null,null,null,null,null,null,null,null,null,null,null,null,null,"244",null,null,null,null,null,null,null,null,null,null,null,null,"0707 223",null,null,null,null,null,null,null,null,null,null,null,null,74808.209999999992,67342.92,null,null,7465.29,79419.650000000009,65420.73,null,null,13998.92,79419.650000000009,65420.73,null,null,13998.92]
["коммунальные услуги",null,null,null,null,null,null,null,null,null,null,null,null,null,null,null,null,null,null,null,null,null,null,null,null,null,null,null,null,null,null,null,null,null,null,null,null,null,null,null,null,null,null,null,null,null,null,null,null,"244",null,null,null,null,null,null,null,null,null,null,null,null,"0801  223",null,null,null,null,null,null,null,null,null,null,null,null,0,null,null,null,null,{"$f":"CD111+CE111+CF111+CG111","v":0},null,null,null,null,0]
["услуги по содержанию имущества",null,null,null,null,null,null,null,null,null,null,null,null,null,null,null,null,null,null,null,null,null,null,null,null,null,null,null,null,null,null,null,null,null,null,null,null,null,null,null,null,null,null,null,null,null,null,null,null,"244",null,null,null,null,null,null,null,null,null,null,null,null,"0707  225",null,null,null,null,null,null,null,null,null,null,null,null,4351392.3599999994,591082.15,{"$f":"300406.8+3300000","v":3600406.8},null,159903.41,1534822.69,678752.73,397448.8,null,458621.16,1534822.69,678752.73,397448.8,null,458621.16]
["услуги по содержанию имущества",null,null,null,null,null,null,null,null,null,null,null,null,null,null,null,null,null,null,null,null,null,null,null,null,null,null,null,null,null,null,null,null,null,null,null,null,null,null,null,null,null,null,null,null,null,null,null,null,"244",null,null,null,null,null,null,null,null,null,null,null,null,"0801  225",null,null,null,null,null,null,null,null,null,null,null,null,106981.3,106981.3,null,null,null,94918.24,94918.24,null,null,null,94918.24,94918.24]
["прочие работы, услуги",null,null,null,null,null,null,null,null,null,null,null,null,null,null,null,null,null,null,null,null,null,null,null,null,null,null,null,null,null,null,null,null,null,null,null,null,null,null,null,null,null,null,null,null,null,null,null,null,"244",null,null,null,null,null,null,null,null,null,null,null,null,"0707  226",null,null,null,null,null,null,null,null,null,null,null,null,998346.8,729583.8,97429,null,171334,1500368.78,{"$f":"766199.28-61910.25","v":704289.03},97430,null,698649.75,1500368.78,{"$f":"766199.28-61910.25","v":704289.03},97430,null,698649.75]
["прочие работы, услуги",null,null,null,null,null,null,null,null,null,null,null,null,null,null,null,null,null,null,null,null,null,null,null,null,null,null,null,null,null,null,null,null,null,null,null,null,null,null,null,null,null,null,null,null,null,null,null,null,"244",null,null,null,null,null,null,null,null,null,null,null,null,"0801  226",null,null,null,null,null,null,null,null,null,null,null,null,441760,441760,null,null,null,624860,624860,null,null,null,624860,624860]
["страхование",null,null,null,null,null,null,null,null,null,null,null,null,null,null,null,null,null,null,null,null,null,null,null,null,null,null,null,null,null,null,null,null,null,null,null,null,null,null,null,null,null,null,null,null,null,null,null,null,"244",null,null,null,null,null,null,null,null,null,null,null,null,"0707  227",null,null,null,null,null,null,null,null,null,null,null,null,1400,null,1400,null,null,1400,null,1400,null,null,1400,null,1400]
["увеличение стоимости основных средств",null,null,null,null,null,null,null,null,null,null,null,null,null,null,null,null,null,null,null,null,null,null,null,null,null,null,null,null,null,null,null,null,null,null,null,null,null,null,null,null,null,null,null,null,null,null,null,null,"244",null,null,null,null,null,null,null,null,null,null,null,null,"0707  310",null,null,null,null,null,null,null,null,null,null,null,null,313797.95,null,271579.25,null,42218.7,640369.29,null,614769.25,null,25600.04,640369.29,null,614769.25,null,25600.04]
["увеличение стоимости лекарственных препаратов и материалов, применяемых в медицинских целях",null,null,null,null,null,null,null,null,null,null,null,null,null,null,null,null,null,null,null,null,null,null,null,null,null,null,null,null,null,null,null,null,null,null,null,null,null,null,null,null,null,null,null,null,null,null,null,null,"244",null,null,null,null,null,null,null,null,null,null,null,null,"0707  341",null,null,null,null,null,null,null,null,null,null,null,null,4380,0,4380,null,null,5176,796,4380,null,null,5176,796,4380]
["увеличение стоимости лекарственных препаратов и материалов, применяемых в медицинских целях",null,null,null,null,null,null,null,null,null,null,null,null,null,null,null,null,null,null,null,null,null,null,null,null,null,null,null,null,null,null,null,null,null,null,null,null,null,null,null,null,null,null,null,null,null,null,null,null,"244",null,null,null,null,null,null,null,null,null,null,null,null,"0801  341",null,null,null,null,null,null,null,null,null,null,null,null,0,null,null,null,null,0,null,null,null,null,0]
["увеличение стоимости продуктов питания",null,null,null,null,null,null,null,null,null,null,null,null,null,null,null,null,null,null,null,null,null,null,null,null,null,null,null,null,null,null,null,null,null,null,null,null,null,null,null,null,null,null,null,null,null,null,null,null,"244",null,null,null,null,null,null,null,null,null,null,null,null,"0707  342",null,null,null,null,null,null,null,null,null,null,null,null,160297.62,61350,67848.05,null,31099.57,620200,61350,67850,null,491000,620200,61350,67850,null,491000]
["увеличение стоимости продуктов питания",null,null,null,null,null,null,null,null,null,null,null,null,null,null,null,null,null,null,null,null,null,null,null,null,null,null,null,null,null,null,null,null,null,null,null,null,null,null,null,null,null,null,null,null,null,null,null,null,"244",null,null,null,null,null,null,null,null,null,null,null,null,"0801  342",null,null,null,null,null,null,null,null,null,null,null,null,0,0,null,null,null,88650,88650,null,null,null,88650,88650]
["увеличение стоимости мягкого инвентаря",null,null,null,null,null,null,null,null,null,null,null,null,null,null,null,null,null,null,null,null,null,null,null,null,null,null,null,null,null,null,null,null,null,null,null,null,null,null,null,null,null,null,null,null,null,null,null,null,"244",null,null,null,null,null,null,null,null,null,null,null,null,"0707  345",null,null,null,null,null,null,null,null,null,null,null,null,57390,21750,35640,null,null,57390,21750,35640,null,null,57390,21750,35640]
["увеличение стоимости мягкого инвентаря",null,null,null,null,null,null,null,null,null,null,null,null,null,null,null,null,null,null,null,null,null,null,null,null,null,null,null,null,null,null,null,null,null,null,null,null,null,null,null,null,null,null,null,null,null,null,null,null,"244",null,null,null,null,null,null,null,null,null,null,null,null,"0801  345",null,null,null,null,null,null,null,null,null,null,null,null,0,0,null,null,null,2040,2040,null,null,null,2040,2040]
["увеличение стоимости прочих оборотных запасов (материалов)",null,null,null,null,null,null,null,null,null,null,null,null,null,null,null,null,null,null,null,null,null,null,null,null,null,null,null,null,null,null,null,null,null,null,null,null,null,null,null,null,null,null,null,null,null,null,null,null,"244",null,null,null,null,null,null,null,null,null,null,null,null,"0707 346",null,null,null,null,null,null,null,null,null,null,null,null,590231.26,216356.88,170170.9,null,{"$f":"201418.48+2285","v":203703.48},553927.22,167769.97,194535,null,191622.25,553927.22,167769.97,194535,null,191622.25]
["увеличение стоимости прочих оборотных запасов (материалов)",null,null,null,null,null,null,null,null,null,null,null,null,null,null,null,null,null,null,null,null,null,null,null,null,null,null,null,null,null,null,null,null,null,null,null,null,null,null,null,null,null,null,null,null,null,null,null,null,"244",null,null,null,null,null,null,null,null,null,null,null,null,"0801  346",null,null,null,null,null,null,null,null,null,null,null,null,39749.97,39749.97,null,null,null,56590,56590,null,null,null,56590,56590]
["увеличение стоимости неисключительных прав на результаты интеллектуальной деятельности с определенным сроком полезного использования",null,null,null,null,null,null,null,null,null,null,null,null,null,null,null,null,null,null,null,null,null,null,null,null,null,null,null,null,null,null,null,null,null,null,null,null,null,null,null,null,null,null,null,null,null,null,null,null,"244",null,null,null,null,null,null,null,null,null,null,null,null,"0707  353",null,null,null,null,null,null,null,null,null,null,null,null,0,null,null,null,null,0,null,null,null,null,0]
["увеличение стоимости материальных запасов для целей капитальных вложений",null,null,null,null,null,null,null,null,null,null,null,null,null,null,null,null,null,null,null,null,null,null,null,null,null,null,null,null,null,null,null,null,null,null,null,null,null,null,null,null,null,null,null,null,null,null,null,null,"244",null,null,null,null,null,null,null,null,null,null,null,null,"0801  347",null,null,null,null,null,null,null,null,null,null,null,null,0,null,null,null,null,0,null,null,null,null,0]
["увеличение стоимости прочих материальных запасов однократного применения",null,null,null,null,null,null,null,null,null,null,null,null,null,null,null,null,null,null,null,null,null,null,null,null,null,null,null,null,null,null,null,null,null,null,null,null,null,null,null,null,null,null,null,null,null,null,null,null,"244",null,null,null,null,null,null,null,null,null,null,null,null,"0707  349",null,null,null,null,null,null,null,null,null,null,null,null,264113,200270,27000,null,36843,184460,153820,12000,null,18640,184460,153820,12000,null,18640]
["увеличение стоимости прочих материальных запасов однократного применения",null,null,null,null,null,null,null,null,null,null,null,null,null,null,null,null,null,null,null,null,null,null,null,null,null,null,null,null,null,null,null,null,null,null,null,null,null,null,null,null,null,null,null,null,null,null,null,null,"244",null,null,null,null,null,null,null,null,null,null,null,null,"0801  349",null,null,null,null,null,null,null,null,null,null,null,null,90400,90400,null,null,null,62500,62500,null,null,null,62500,62500]
["Увеличение стоимости горюче-смазочных материалов",null,null,null,null,null,null,null,null,null,null,null,null,null,null,null,null,null,null,null,null,null,null,null,null,null,null,null,null,null,null,null,null,null,null,null,null,null,null,null,null,null,null,null,null,null,null,null,null,"244",null,null,null,null,null,null,null,null,null,null,null,null,"0707  343",null,null,null,null,null,null,null,null,null,null,null,null,{"$f":"BY130+BZ130+CA130+CB130","v":0},null,null,null,null,0,null,null,null,null,{"$f":"CI130+CJ130+CK130+CL130","v":0}]
["закупку товаров, работ, услуг, в целях создания, развития, эксплуатации и вывода из эксплуатации государственных информационных систем",null,null,null,null,null,null,null,null,null,null,null,null,null,null,null,null,null,null,null,null,null,null,null,null,null,null,null,null,null,null,null,null,null,null,null,null,null,null,null,null,"2650",null,null,null,null,null,null,null,"246"]
["закупку энергетических ресурсов",null,null,null,null,null,null,null,null,null,null,null,null,null,null,null,null,null,null,null,null,null,null,null,null,null,null,null,null,null,null,null,null,null,null,null,null,null,null,null,null,"2660",null,null,null,null,null,null,null,"247",null,null,null,null,null,null,null,null,null,null,null,null,"0707 223",null,null,null,null,null,null,null,null,null,null,null,null,{"$f":"BY132+BZ132+CA132+CB132","v":881593.08},678856.21,null,null,202736.87,{"$f":"CD132+CE132+CF132+CG132","v":908688.21},824591.27,null,null,84096.94,{"$f":"CI132+CJ132+CK132+CL132","v":908688.21},824591.27,null,null,84096.94]
["закупку энергетических ресурсов",null,null,null,null,null,null,null,null,null,null,null,null,null,null,null,null,null,null,null,null,null,null,null,null,null,null,null,null,null,null,null,null,null,null,null,null,null,null,null,null,"2660",null,null,null,null,null,null,null,"247",null,null,null,null,null,null,null,null,null,null,null,null,"0801  223",null,null,null,null,null,null,null,null,null,null,null,null,138877.76999999999,138877.76999999999,null,null,null,{"$f":"CD133+CE133+CF133+CG133","v":192857.74},192857.74,null,null,null,192857.74,192857.74]
["капитальные вложения в объекты государственной (муниципальной) собственности, всего",null,null,null,null,null,null,null,null,null,null,null,null,null,null,null,null,null,null,null,null,null,null,null,null,null,null,null,null,null,null,null,null,null,null,null,null,null,null,null,null,"2700",null,null,null,null,null,null,null,"400"]
["в том числе:\nприобретение объектов недвижимого имущества государствееными (муниципальными учреждениями)",null,null,null,null,null,null,null,null,null,null,null,null,null,null,null,null,null,null,null,null,null,null,null,null,null,null,null,null,null,null,null,null,null,null,null,null,null,null,null,null,"2710",null,null,null,null,null,null,null,"406"]
["строительство (реконструкция) объектов недвижимого имущества государственными (муниципальными) учреждениями",null,null,null,null,null,null,null,null,null,null,null,null,null,null,null,null,null,null,null,null,null,null,null,null,null,null,null,null,null,null,null,null,null,null,null,null,null,null,null,null,"2720",null,null,null,null,null,null,null,"407"]
["Выплаты, уменьшающие доход, всего 8",null,null,null,null,null,null,null,null,null,null,null,null,null,null,null,null,null,null,null,null,null,null,null,null,null,null,null,null,null,null,null,null,null,null,null,null,null,null,null,null,"3000",null,null,null,null,null,null,null,"100",null,null,null,null,null,null,null,null,null,null,null,null,null,null,null,null,null,null,null,null,null,null,null,null,null,{"$f":"BX140","v":-48067},null,null,null,{"$f":"CB140","v":-48067},{"$f":"CC140","v":-150000},null,null,null,{"$f":"CG140","v":-150000},{"$f":"CH140","v":-150000},null,null,null,{"$f":"CL140","v":-150000},"х"]
["в том числе:\nналог на прибыль 8",null,null,null,null,null,null,null,null,null,null,null,null,null,null,null,null,null,null,null,null,null,null,null,null,null,null,null,null,null,null,null,null,null,null,null,null,null,null,null,null,"3010",null,null,null,null,null,null,null,null,null,null,null,null,null,null,null,null,null,null,null,null,null,null,null,null,null,null,null,null,null,null,null,null,null,null,null,null,null,null,null,null,null,null,null,null,null,null,null,null,"х"]
["налог на добавленную стоимость 8",null,null,null,null,null,null,null,null,null,null,null,null,null,null,null,null,null,null,null,null,null,null,null,null,null,null,null,null,null,null,null,null,null,null,null,null,null,null,null,null,"3020",null,null,null,null,null,null,null,null,null,null,null,null,null,null,null,null,null,null,null,null,null,null,null,null,null,null,null,null,null,null,null,null,null,null,null,null,null,null,null,null,null,null,null,null,null,null,null,null,"х"]
["прочие налоги, уменьшающие доход 8",null,null,null,null,null,null,null,null,null,null,null,null,null,null,null,null,null,null,null,null,null,null,null,null,null,null,null,null,null,null,null,null,null,null,null,null,null,null,null,null,"3030",null,null,null,null,null,null,null,null,null,null,null,null,null,null,null,null,null,null,null,null,"0000 189",null,null,null,null,null,null,null,null,null,null,null,null,{"$f":"CB140","v":-48067},null,null,null,-48067,{"$f":"-150000","v":-150000},null,null,null,{"$f":"-150000","v":-150000},{"$f":"-150000","v":-150000},null,null,null,{"$f":"-150000","v":-150000},"х"]
["Прочие выплаты, всего 9",null,null,null,null,null,null,null,null,null,null,null,null,null,null,null,null,null,null,null,null,null,null,null,null,null,null,null,null,null,null,null,null,null,null,null,null,null,null,null,null,"4000",null,null,null,null,null,null,null,"х",null,null,null,null,null,null,null,null,null,null,null,null,null,null,null,null,null,null,null,null,null,null,null,null,null,null,null,null,null,null,null,null,null,null,null,null,null,null,null,null,"х"]
["из них:\nвозврат в бюджет средств субсидии",null,null,null,null,null,null,null,null,null,null,null,null,null,null,null,null,null,null,null,null,null,null,null,null,null,null,null,null,null,null,null,null,null,null,null,null,null,null,null,null,"4010",null,null,null,null,null,null,null,"610",null,null,null,null,null,null,null,null,null,null,null,null,null,null,null,null,null,null,null,null,null,null,null,null,null,null,null,null,null,null,null,null,null,null,null,null,null,null,null,null,"х"]
[]
[]
["_____1_В случае утверждения закона (решения) о бюджете на текущий финансовый год и плановый период."]
["_____2_Указывается дата подписания Плана, а в случае утверждения Плана уполномоченным лицом учреждения - дата утверждения Плана."]
["_____3_В графе 3 отражаются:"]
["_____по строкам 1100 - 1900 - коды аналитической группы подвида доходов бюджетов классификации доходов бюджетов;"]
["_____по строкам 1980 - 1990 - коды аналитической группы вида источников финансирования дефицитов бюджетов классификации источников финансирования дефицитов бюджетов;"]
["_____по строкам 2000 - 2720 - коды видов расходов бюджетов классификации расходов бюджетов;"]
["_____по строкам 3000 - 3030 - коды аналитической группы подвида доходов бюджетов классификации доходов бюджетов, по которым планируется уплата налогов, уменьшающих доход (в том числе налог на прибыль, налог на добавленную стоимость, единый налог на вмененный доход для отдельных видов деятельности);"]
["_____по строкам 4000 - 4040 - коды аналитической группы вида источников финансирования дефицитов бюджетов классификации источников финансирования дефицитов бюджетов."]
["_____4_В графе 4 указывается код классификации операций сектора государственного управления в соответствии с Порядком применения классификации операций сектора государственного управления, утвержденным приказом Министерства финансов Российской Федерации от 29 ноября 2017 г. № 209н (зарегистрирован в Министерстве юстиции Российской Федерации 12 февраля 2018 г., регистрационный номер 50003), и код функциональной статьи расходов"]
["_____5_По строкам 0001 и 0002 указываются планируемые суммы остатков средств на начало и на конец планируемого года, если указанные показатели по решению органа, осуществляющего функции и полномочия учредителя, планируются на этапе формирования проекта Плана  либо указываются фактические остатки средств при внесении изменений в утвержденный План после завершения отчетного финансового года."]
["_____6_Показатели прочих поступлений включают в себя в том числе показатели увеличения денежных средств за счет возврата дебиторской задолженности прошлых лет, включая возврат предоставленных займов (микрозаймов), а также за счет возврата средств, размещенных на банковских депозитах. При формировании Плана (проекта Плана) обособленному(ым) подразделению(ям) показатель прочих поступлений включает показатель поступлений в рамках расчетов между головным учреждением и обособленным подразделением."]
["_____7_Показатели выплат по расходам на закупки товаров, работ, услуг, отраженные по строкам 2600 Раздела 1 \"Поступления и выплаты\" Плана, подлежат детализации в Разделе 2 \"Сведения по выплатам на закупку товаров, работ, услуг\" Плана."]
["_____8_Показатель отражается со знаком \"минус\"."]
["_____9_Показатели прочих выплат включают в себя в том числе показатели уменьшения денежных средств за счет возврата средств субсидий, предоставленных до начала текущего финансового года, предоставления займов (микрозаймов), размещения автономными учреждениями денежных средств на банковских депозитах. При формировании Плана (проекта Плана) обособленному(ым) подразделению(ям) показатель прочих выплат включает показатель поступлений в рамках расчетов между головным учреждением и обособленным подразделением."]
[]
[]
[]
[null,null,null,null,null,null,null,null,null,null,null,null,null,null,null,null,null,null,null,null,null,null,null,null,null,null,null,null,null,null,null,null,null,null,null,null,null,null,null,null,null,null,null,null,null,null,null,null,null,null,null,null,null,null,null,null,null,null,null,null,null,null,null,null,null,null,null,null,null,null,null,null,null,null,null,"0707",{"$f":"BY63+BY67+BY69+BY106+BY108+BY110+BY112+BY114+BY118+BY120+BY122+BY124+BY126+BY128-0.01","v":15878375.160000002}]
[null,null,null,null,null,null,null,null,null,null,null,null,null,null,null,null,null,null,null,null,null,null,null,null,null,null,null,null,null,null,null,null,null,null,null,null,null,null,null,null,null,null,null,null,null,null,null,null,null,null,null,null,null,null,null,null,null,null,null,null,null,null,null,null,null,null,null,null,null,null,null,null,null,null,null,"0801",{"$f":"BY64+BY68+BY107+BY109+BY111+BY113+BY115+BY119+BY121+BY123+BY125+BY129","v":2824405.97}]
[null,null,null,null,null,null,null,null,null,null,null,null,null,null,null,null,null,null,null,null,null,null,null,null,null,null,null,null,null,null,null,null,null,null,null,null,null,null,null,null,null,null,null,null,null,null,null,null,null,null,null,null,null,null,null,null,null,null,null,null,null,null,null,null,null,null,null,null,null,null,null,null,null,null,null,null,{"$f":"BY162+BY163","v":18702781.130000003}]

{"sheet":"РАЗДЕЛ 2","index":1,"n_rows":92,"n_cols":151,"rows_kept":92,"cut":false,"hidden":false,"merged":[[46,0,46,7],[47,0,47,7],[3,124,3,129],[3,130,3,132],[3,133,3,136],[0,1,0,161],[2,0,4,7],[2,8,4,90],[2,91,4,98],[2,99,4,108],[2,110,4,110],[2,111,2,162],[3,111,3,116],[3,117,3,119],[3,120,3,123],[3,150,4,162],[4,111,4,123],[4,124,4,136],[4,137,4,149],[3,137,3,142],[3,143,3,145],[3,146,3,149],[2,109,4,109],[5,137,5,149],[5,150,5,162],[6,0,6,7],[6,8,6,90],[6,91,6,98],[6,99,6,108],[6,111,6,123],[6,124,6,136],[6,137,6,149],[6,150,6,162],[5,0,5,7],[5,8,5,90],[5,91,5,98],[5,99,5,108],[5,111,5,123],[5,124,5,136],[7,137,7,149],[7,150,7,162],[8,0,8,7],[8,8,8,90],[8,91,8,98],[8,99,8,108],[8,111,8,123],[8,124,8,136],[8,137,8,149],[8,150,8,162],[7,0,7,7],[7,8,7,90],[7,91,7,98],[7,99,7,108],[7,111,7,123],[7,124,7,136],[9,137,9,149],[9,150,9,162],[10,0,10,7],[10,8,10,90],[10,91,10,98],[10,99,10,108],[10,111,10,123],[10,124,10,136],[10,137,10,149],[10,150,10,162],[9,0,9,7],[9,8,9,90],[9,91,9,98],[9,99,9,108],[9,111,9,123],[9,124,9,136],[12,137,12,149],[12,150,12,162],[13,0,13,7],[13,8,13,90],[13,91,13,98],[13,99,13,108],[13,111,13,123],[13,124,13,136],[13,137,13,149],[13,150,13,162],[12,0,12,7],[12,8,12,90],[12,91,12,98],[12,99,12,108],[12,111,12,123],[12,124,12,136],[14,137,14,149],[14,150,14,162],[15,0,15,7],[15,8,15,90],[15,91,15,98],[15,99,15,108],[15,111,15,123],[15,124,15,136],[15,137,15,149],[15,150,15,162],[14,0,14,7],[14,8,14,90],[14,91,14,98],[14,99,14,108],[14,111,14,123],[14,124,14,136],[16,137,16,149],[16,150,16,162],[17,0,17,7],[17,8,17,90],[17,91,17,98],[17,99,17,108],[17,111,17,123],[17,124,17,136],[17,137,17,149],[17,150,17,162],[16,0,16,7],[16,8,16,90],[16,91,16,98],[16,99,16,108],[16,111,16,123],[16,124,16,136],[18,137,18,149],[18,150,18,162],[19,0,19,7],[19,8,19,90],[19,91,19,98],[19,99,19,108],[19,111,19,123],[19,124,19,136],[19,137,19,149],[19,150,19,162],[18,0,18,7],[18,8,18,90],[18,91,18,98],[18,99,18,108],[18,111,18,123],[18,124,18,136],[20,137,20,149],[20,150,20,162],[21,0,21,7],[21,8,21,90],[21,91,21,98],[21,99,21,108],[21,111,21,123],[21,124,21,136],[21,137,21,149],[21,150,21,162],[20,0,20,7],[20,8,20,90],[20,91,20,98],[20,99,20,108],[20,111,20,123],[20,124,20,136],[22,137,22,149],[22,150,22,162],[23,0,23,7],[23,8,23,90],[23,91,23,98],[23,99,23,108],[23,111,23,123],[23,124,23,136],[23,137,23,149],[23,150,23,162],[22,0,22,7],[22,8,22,90],[22,91,22,98],[22,99,22,108],[22,111,22,123],[22,124,22,136],[24,137,24,149],[24,150,24,162],[25,0,25,7],[25,8,25,90],[25,91,25,98],[25,99,25,108],[25,111,25,123],[25,124,25,136],[25,137,25,149],[25,150,25,162],[24,0,24,7],[24,8,24,90],[24,91,24,98],[24,99,24,108],[24,111,24,123],[24,124,24,136],[26,137,26,149],[26,150,26,162],[27,0,27,7],[27,8,27,90],[27,91,27,98],[27,99,27,108],[27,111,27,123],[27,124,27,136],[27,137,27,149],[27,150,27,162],[26,0,26,7],[26,8,26,90],[26,91,26,98],[26,99,26,108],[26,111,26,123],[26,124,26,136],[28,137,28,149],[28,150,28,162],[29,0,29,7],[29,8,29,90],[29,91,29,98],[29,99,29,108],[29,111,29,123],[29,124,29,136],[29,137,29,149],[29,150,29,162],[28,0,28,7],[28,8,28,90],[28,91,28,98],[28,99,28,108],[28,111,28,123],[28,124,28,136],[30,137,30,149],[30,150,30,162],[31,0,31,7],[31,8,31,90],[31,91,31,98],[31,99,31,108],[31,111,31,123],[31,124,31,136],[31,137,31,149],[31,150,31,162],[30,0,30,7],[30,8,30,90],[30,91,30,98],[30,99,30,108],[30,111,30,123],[30,124,30,136],[32,137,32,149],[32,150,32,162],[33,0,33,7],[33,8,33,90],[33,91,33,98],[33,99,33,108],[33,111,33,123],[33,124,33,136],[33,137,33,149],[33,150,33,162],[32,0,32,7],[32,8,32,90],[32,91,32,98],[32,99,32,108],[32,111,32,123],[32,124,32,136],[34,137,34,149],[34,150,34,162],[35,0,35,7],[35,8,35,90],[35,91,35,98],[35,99,35,108],[35,111,35,123],[35,124,35,136],[35,137,35,149],[35,150,35,162],[34,0,34,7],[34,8,34,90],[34,91,34,98],[34,99,34,108],[34,111,34,123],[34,124,34,136],[36,137,36,149],[36,150,36,162],[37,0,37,7],[37,8,37,90],[37,91,37,98],[37,99,37,108],[37,111,37,123],[37,124,37,136],[37,137,37,149],[37,150,37,162],[36,0,36,7],[36,8,36,90],[36,91,36,98],[36,99,36,108],[36,111,36,123],[36,124,36,136],[38,137,38,149],[38,150,38,162],[39,0,39,7],[39,8,39,90],[39,91,39,98],[39,99,39,108],[39,111,39,123],[39,124,39,136],[39,137,39,149],[39,150,39,162],[38,0,38,7],[38,8,38,90],[38,91,38,98],[38,99,38,108],[38,111,38,123],[38,124,38,136],[40,137,40,149],[40,150,40,162],[41,0,41,7],[41,8,41,90],[41,91,41,98],[41,99,41,108],[41,111,41,123],[41,124,41,136],[41,137,41,149],[41,150,41,162],[40,0,40,7],[40,8,40,90],[40,91,40,98],[40,99,40,108],[40,111,40,123],[40,124,40,136],[45,150,45,162],[44,0,44,7],[44,8,44,90],[44,91,44,98],[44,99,44,108],[44,111,44,123],[44,124,44,136],[42,137,42,149],[42,150,42,162],[43,0,43,7],[43,8,43,90],[43,91,43,98],[43,99,43,108],[43,111,43,123],[43,124,43,136],[43,137,43,149],[43,150,43,162],[42,0,42,7],[42,8,42,90],[42,91,42,98],[42,99,42,108],[42,111,42,123],[42,124,42,136],[47,150,47,162],[48,0,48,7],[48,8,48,90],[48,91,48,98],[48,99,48,108],[48,111,48,123],[48,124,48,136],[48,137,48,149],[48,150,48,162],[47,8,47,90],[47,91,47,98],[47,99,47,108],[47,111,47,123],[47,124,47,136],[47,137,47,149],[49,137,49,149],[49,150,49,162],[50,0,50,7],[50,8,50,90],[50,91,50,98],[50,99,50,108],[50,111,50,123],[50,124,50,136],[50,137,50,149],[50,150,50,162],[49,0,49,7],[49,8,49,90],[49,91,49,98],[49,99,49,108],[49,111,49,123],[49,124,49,136],[51,137,51,149],[51,150,51,162],[52,0,52,7],[52,8,52,90],[52,91,52,98],[52,99,52,108],[52,111,52,123],[52,124,52,136],[52,137,52,149],[52,150,52,162],[51,0,51,7],[51,8,51,90],[51,91,51,98],[51,99,51,108],[51,111,51,123],[51,124,51,136],[54,137,54,149],[54,150,54,162],[55,0,55,7],[55,8,55,90],[55,91,55,98],[55,99,55,110],[55,111,55,123],[55,124,55,136],[55,137,55,149],[55,150,55,162],[54,0,54,7],[54,8,54,90],[54,91,54,98],[54,99,54,108],[54,111,54,123],[54,124,54,136],[58,8,58,90],[59,0,59,7],[59,8,59,90],[59,91,59,98],[59,99,59,110],[59,111,59,123],[56,137,56,149],[56,150,56,162],[57,0,58,7],[57,8,57,90],[57,91,58,98],[57,99,58,110],[57,111,58,123],[57,124,58,136],[57,137,58,149],[57,150,58,162],[56,0,56,7],[56,8,56,90],[56,91,56,98],[56,99,56,110],[56,111,56,123],[56,124,56,136],[59,124,59,136],[59,137,59,149],[60,0,61,7],[60,8,60,90],[60,91,61,98],[60,99,61,110],[60,111,61,123],[60,124,61,136],[60,137,61,149],[67,38,67,55],[67,58,67,75],[67,78,67,95],[60,150,61,162],[61,8,61,90],[64,42,64,59],[64,62,64,73],[64,76,64,95],[65,42,65,59],[65,62,65,73],[65,76,65,95],[59,150,59,162],[85,0,85,162],[86,0,86,162],[87,0,87,162],[91,0,91,162],[80,0,80,1],[80,2,80,4],[80,5,80,6],[80,8,80,22],[80,23,80,25],[80,26,80,28],[11,0,11,7],[11,8,11,90],[11,91,11,98],[11,99,11,108],[11,111,11,123],[11,124,11,136],[11,137,11,149],[11,150,11,162],[46,8,46,90],[46,91,46,98],[46,99,46,108],[46,111,46,123],[46,124,46,136],[46,137,46,149],[46,150,46,162],[44,137,44,149],[44,150,44,162],[45,0,45,7],[45,8,45,90],[45,91,45,98],[45,99,45,108],[45,111,45,123],[45,124,45,136],[45,137,45,149],[53,0,53,7],[53,8,53,90],[53,91,53,98],[53,99,53,108],[53,111,53,123],[53,124,53,136],[53,137,53,149],[53,150,53,162],[84,0,84,162],[74,0,74,90],[75,0,75,90],[77,0,77,24],[77,33,77,90],[78,0,78,24],[78,33,78,90],[70,8,70,9],[70,10,70,12],[70,13,70,14],[70,16,70,30],[70,31,70,33],[70,34,70,36],[68,38,68,55],[68,58,68,75],[68,78,68,95]]}
[null,"Раздел 2. Сведения по выплатам на закупки товаров, работ, услуг 10"]
[]
["№\nп/п",null,null,null,null,null,null,null,"Наименование показателя",null,null,null,null,null,null,null,null,null,null,null,null,null,null,null,null,null,null,null,null,null,null,null,null,null,null,null,null,null,null,null,null,null,null,null,null,null,null,null,null,null,null,null,null,null,null,null,null,null,null,null,null,null,null,null,null,null,null,null,null,null,null,null,null,null,null,null,null,null,null,null,null,null,null,null,null,null,null,null,null,null,null,"Коды\nстрок",null,null,null,null,null,null,null,"Год\nначала закупки",null,null,null,null,null,null,null,null,null,"Код по бюджетной классификации Российской Федерации <10.1>","Уникальный код <10.2>","Сумма"]
[null,null,null,null,null,null,null,null,null,null,null,null,null,null,null,null,null,null,null,null,null,null,null,null,null,null,null,null,null,null,null,null,null,null,null,null,null,null,null,null,null,null,null,null,null,null,null,null,null,null,null,null,null,null,null,null,null,null,null,null,null,null,null,null,null,null,null,null,null,null,null,null,null,null,null,null,null,null,null,null,null,null,null,null,null,null,null,null,null,null,null,null,null,null,null,null,null,null,null,null,null,null,null,null,null,null,null,null,null,null,null,"на 20",null,null,null,null,null,"21",null,null," г.",null,null,null,"на 20",null,null,null,null,null,"22",null,null," г.",null,null,null,"на 20",null,null,null,null,null,"23",null,null," г.",null,null,null,"за пределами планового периода"]
[null,null,null,null,null,null,null,null,null,null,null,null,null,null,null,null,null,null,null,null,null,null,null,null,null,null,null,null,null,null,null,null,null,null,null,null,null,null,null,null,null,null,null,null,null,null,null,null,null,null,null,null,null,null,null,null,null,null,null,null,null,null,null,null,null,null,null,null,null,null,null,null,null,null,null,null,null,null,null,null,null,null,null,null,null,null,null,null,null,null,null,null,null,null,null,null,null,null,null,null,null,null,null,null,null,null,null,null,null,null,null,"(текущий финансовый год)",null,null,null,null,null,null,null,null,null,null,null,null,"(первый год планового периода)",null,null,null,null,null,null,null,null,null,null,null,null,"(второй год планового периода)"]
["1",null,null,null,null,null,null,null,"2",null,null,null,null,null,null,null,null,null,null,null,null,null,null,null,null,null,null,null,null,null,null,null,null,null,null,null,null,null,null,null,null,null,null,null,null,null,null,null,null,null,null,null,null,null,null,null,null,null,null,null,null,null,null,null,null,null,null,null,null,null,null,null,null,null,null,null,null,null,null,null,null,null,null,null,null,null,null,null,null,null,null,"3",null,null,null,null,null,null,null,"4",null,null,null,null,null,null,null,null,null,"4.1","4.2","5",null,null,null,null,null,null,null,null,null,null,null,null,"6",null,null,null,null,null,null,null,null,null,null,null,null,"7",null,null,null,null,null,null,null,null,null,null,null,null,"8"]
[1,null,null,null,null,null,null,null,"Выплаты на закупку товаров, работ, услуг, всего 11",null,null,null,null,null,null,null,null,null,null,null,null,null,null,null,null,null,null,null,null,null,null,null,null,null,null,null,null,null,null,null,null,null,null,null,null,null,null,null,null,null,null,null,null,null,null,null,null,null,null,null,null,null,null,null,null,null,null,null,null,null,null,null,null,null,null,null,null,null,null,null,null,null,null,null,null,null,null,null,null,null,null,"26000",null,null,null,null,null,null,null,"х",null,null,null,null,null,null,null,null,null,"х","х",{"$f":"DH15","v":8963826.5099999998},null,null,null,null,null,null,null,null,null,null,null,null,{"$f":"DU15","v":7765173.8200000003},null,null,null,null,null,null,null,null,null,null,null,null,{"$f":"EH15","v":7765173.8200000003}]
["1.1",null,null,null,null,null,null,null,"в том числе:\nпо контрактам (договорам), заключенным до начала текущего финансового года без применения норм Федерального закона от 5 апреля 2013 г. № 44-ФЗ \"О контрактной системе в сфере закупок товаров, работ, услуг для обеспечения государственных и муниципальных нужд\" (далее - Федеральный закон № 44-ФЗ) и Федерального закона от 18 июля 2011 г. № 223-ФЗ \"О закупках товаров, работ, услуг отдельными видами юридических лиц\"(далее - Федеральный закон № 223-ФЗ)12",null,null,null,null,null,null,null,null,null,null,null,null,null,null,null,null,null,null,null,null,null,null,null,null,null,null,null,null,null,null,null,null,null,null,null,null,null,null,null,null,null,null,null,null,null,null,null,null,null,null,null,null,null,null,null,null,null,null,null,null,null,null,null,null,null,null,null,null,null,null,null,null,null,null,null,null,null,null,null,null,null,null,"26100",null,null,null,null,null,null,null,"х",null,null,null,null,null,null,null,null,null,"х","х"]
["1.2",null,null,null,null,null,null,null,"по контрактам (договорам), планируемым к заключению в соответствующем финансовом году без применения норм Федерального закона № 44-ФЗ и Федерального закона № 223-ФЗ 12",null,null,null,null,null,null,null,null,null,null,null,null,null,null,null,null,null,null,null,null,null,null,null,null,null,null,null,null,null,null,null,null,null,null,null,null,null,null,null,null,null,null,null,null,null,null,null,null,null,null,null,null,null,null,null,null,null,null,null,null,null,null,null,null,null,null,null,null,null,null,null,null,null,null,null,null,null,null,null,null,null,null,"26200",null,null,null,null,null,null,null,"х",null,null,null,null,null,null,null,null,null,"х","х"]
["1.3",null,null,null,null,null,null,null,"по контрактам (договорам), заключенным до начала текущего финансового года с учетом требований Федерального закона № 44-ФЗ и Федерального закона № 223-ФЗ 13",null,null,null,null,null,null,null,null,null,null,null,null,null,null,null,null,null,null,null,null,null,null,null,null,null,null,null,null,null,null,null,null,null,null,null,null,null,null,null,null,null,null,null,null,null,null,null,null,null,null,null,null,null,null,null,null,null,null,null,null,null,null,null,null,null,null,null,null,null,null,null,null,null,null,null,null,null,null,null,null,null,null,"26300",null,null,null,null,null,null,null,"х",null,null,null,null,null,null,null,null,null,"х","х"]
["1.3.1",null,null,null,null,null,null,null,"в том числе:\nв соответствии с Федеральным законом N 44-ФЗ\n",null,null,null,null,null,null,null,null,null,null,null,null,null,null,null,null,null,null,null,null,null,null,null,null,null,null,null,null,null,null,null,null,null,null,null,null,null,null,null,null,null,null,null,null,null,null,null,null,null,null,null,null,null,null,null,null,null,null,null,null,null,null,null,null,null,null,null,null,null,null,null,null,null,null,null,null,null,null,null,null,null,null,"26310",null,null,null,null,null,null,null,"х",null,null,null,null,null,null,null,null,null,"х","х"]
[null,null,null,null,null,null,null,null,"из них <10.1>",null,null,null,null,null,null,null,null,null,null,null,null,null,null,null,null,null,null,null,null,null,null,null,null,null,null,null,null,null,null,null,null,null,null,null,null,null,null,null,null,null,null,null,null,null,null,null,null,null,null,null,null,null,null,null,null,null,null,null,null,null,null,null,null,null,null,null,null,null,null,null,null,null,null,null,null,null,null,null,null,null,null,"26310.1",null,null,null,null,null,null,null,"х"]
[null,null,null,null,null,null,null,null,"из них <10.2>",null,null,null,null,null,null,null,null,null,null,null,null,null,null,null,null,null,null,null,null,null,null,null,null,null,null,null,null,null,null,null,null,null,null,null,null,null,null,null,null,null,null,null,null,null,null,null,null,null,null,null,null,null,null,null,null,null,null,null,null,null,null,null,null,null,null,null,null,null,null,null,null,null,null,null,null,null,null,null,null,null,null,"26310.2",null,null,null,null,null,null,null,"х"]
["1.3.2",null,null,null,null,null,null,null,"в соответствии с Федеральным законом N 223-ФЗ",null,null,null,null,null,null,null,null,null,null,null,null,null,null,null,null,null,null,null,null,null,null,null,null,null,null,null,null,null,null,null,null,null,null,null,null,null,null,null,null,null,null,null,null,null,null,null,null,null,null,null,null,null,null,null,null,null,null,null,null,null,null,null,null,null,null,null,null,null,null,null,null,null,null,null,null,null,null,null,null,null,null,"26302",null,null,null,null,null,null,null,"х",null,null,null,null,null,null,null,null,null,"х","х"]
["1.4",null,null,null,null,null,null,null,"по контрактам (договорам), планируемым к заключению в соответствующем финансовом году с учетом требований Федерального закона № 44-ФЗ и Федерального закона № 223-ФЗ 13",null,null,null,null,null,null,null,null,null,null,null,null,null,null,null,null,null,null,null,null,null,null,null,null,null,null,null,null,null,null,null,null,null,null,null,null,null,null,null,null,null,null,null,null,null,null,null,null,null,null,null,null,null,null,null,null,null,null,null,null,null,null,null,null,null,null,null,null,null,null,null,null,null,null,null,null,null,null,null,null,null,null,"26400",null,null,null,null,null,null,null,"х",null,null,null,null,null,null,null,null,null,"х","х",{"$f":"DH16+DH42+DH52","v":8963826.5099999998},null,null,null,null,null,null,null,null,null,null,null,null,{"$f":"DU16+DU42+DU52","v":7765173.8200000003},null,null,null,null,null,null,null,null,null,null,null,null,{"$f":"EH16+EH42+EH52","v":7765173.8200000003}]
["1.4.1",null,null,null,null,null,null,null,"в том числе:\nза счет субсидий, предоставляемых на финансовое обеспечение выполнения муниципального задания",null,null,null,null,null,null,null,null,null,null,null,null,null,null,null,null,null,null,null,null,null,null,null,null,null,null,null,null,null,null,null,null,null,null,null,null,null,null,null,null,null,null,null,null,null,null,null,null,null,null,null,null,null,null,null,null,null,null,null,null,null,null,null,null,null,null,null,null,null,null,null,null,null,null,null,null,null,null,null,null,null,null,"26410",null,null,null,null,null,null,null,"х",null,null,null,null,null,null,null,null,null,"х","х",{"$f":"'раздел 1'!BY102","v":3706168.1900000004},null,null,null,null,null,null,null,null,null,null,null,null,{"$f":"'раздел 1'!CD102","v":4195064.03},null,null,null,null,null,null,null,null,null,null,null,null,{"$f":"'раздел 1'!CI102","v":4195064.03}]
["1.4.1.1",null,null,null,null,null,null,null,"в том числе:\nв соответствии с Федеральным законом № 44-ФЗ",null,null,null,null,null,null,null,null,null,null,null,null,null,null,null,null,null,null,null,null,null,null,null,null,null,null,null,null,null,null,null,null,null,null,null,null,null,null,null,null,null,null,null,null,null,null,null,null,null,null,null,null,null,null,null,null,null,null,null,null,null,null,null,null,null,null,null,null,null,null,null,null,null,null,null,null,null,null,null,null,null,null,"26411",null,null,null,null,null,null,null,"х",null,null,null,null,null,null,null,null,null,"х","х"]
["1.4.1.2",null,null,null,null,null,null,null,"в соответствии с Федеральным законом № 223-ФЗ 14",null,null,null,null,null,null,null,null,null,null,null,null,null,null,null,null,null,null,null,null,null,null,null,null,null,null,null,null,null,null,null,null,null,null,null,null,null,null,null,null,null,null,null,null,null,null,null,null,null,null,null,null,null,null,null,null,null,null,null,null,null,null,null,null,null,null,null,null,null,null,null,null,null,null,null,null,null,null,null,null,null,null,"26412",null,null,null,null,null,null,null,"х",null,null,null,null,null,null,null,null,null,"х","х",{"$f":"DH16","v":3706168.1900000004},null,null,null,null,null,null,null,null,null,null,null,null,{"$f":"DU16","v":4195064.03},null,null,null,null,null,null,null,null,null,null,null,null,{"$f":"EH16","v":4195064.03}]
[null,null,null,null,null,null,null,null,"услуги связи",null,null,null,null,null,null,null,null,null,null,null,null,null,null,null,null,null,null,null,null,null,null,null,null,null,null,null,null,null,null,null,null,null,null,null,null,null,null,null,null,null,null,null,null,null,null,null,null,null,null,null,null,null,null,null,null,null,null,null,null,null,null,null,null,null,null,null,null,null,null,null,null,null,null,null,null,null,null,null,null,null,null,null,null,null,null,null,null,null,null,"х",null,null,null,null,null,null,null,null,null,"х","х",{"$f":"'[1]раздел 1'!BX104","v":200681.91999999998},null,null,null,null,null,null,null,null,null,null,null,null,{"$f":"'[1]раздел 1'!CC104","v":187403.25999999998},null,null,null,null,null,null,null,null,null,null,null,null,{"$f":"'[1]раздел 1'!CH104","v":187403.25999999998}]
[null,null,null,null,null,null,null,null,"услуги связи",null,null,null,null,null,null,null,null,null,null,null,null,null,null,null,null,null,null,null,null,null,null,null,null,null,null,null,null,null,null,null,null,null,null,null,null,null,null,null,null,null,null,null,null,null,null,null,null,null,null,null,null,null,null,null,null,null,null,null,null,null,null,null,null,null,null,null,null,null,null,null,null,null,null,null,null,null,null,null,null,null,null,null,null,null,null,null,null,null,null,"х",null,null,null,null,null,null,null,null,null,"х","х",{"$f":"'[1]раздел 1'!BX105","v":22160.76},null,null,null,null,null,null,null,null,null,null,null,null,{"$f":"'[1]раздел 1'!CC105","v":33516.74},null,null,null,null,null,null,null,null,null,null,null,null,{"$f":"'[1]раздел 1'!CH105","v":33516.74}]
[null,null,null,null,null,null,null,null,"транспортные услуги",null,null,null,null,null,null,null,null,null,null,null,null,null,null,null,null,null,null,null,null,null,null,null,null,null,null,null,null,null,null,null,null,null,null,null,null,null,null,null,null,null,null,null,null,null,null,null,null,null,null,null,null,null,null,null,null,null,null,null,null,null,null,null,null,null,null,null,null,null,null,null,null,null,null,null,null,null,null,null,null,null,null,null,null,null,null,null,null,null,null,"х",null,null,null,null,null,null,null,null,null,"х","х",{"$f":"'[1]раздел 1'!BX106","v":279736},null,null,null,null,null,null,null,null,null,null,null,null,{"$f":"'[1]раздел 1'!CC106","v":265058.63},null,null,null,null,null,null,null,null,null,null,null,null,{"$f":"'[1]раздел 1'!CH106","v":265058.63}]
[null,null,null,null,null,null,null,null,"транспортные услуги",null,null,null,null,null,null,null,null,null,null,null,null,null,null,null,null,null,null,null,null,null,null,null,null,null,null,null,null,null,null,null,null,null,null,null,null,null,null,null,null,null,null,null,null,null,null,null,null,null,null,null,null,null,null,null,null,null,null,null,null,null,null,null,null,null,null,null,null,null,null,null,null,null,null,null,null,null,null,null,null,null,null,null,null,null,null,null,null,null,null,"х",null,null,null,null,null,null,null,null,null,"х","х",{"$f":"'[1]раздел 1'!BX107","v":90830},null,null,null,null,null,null,null,null,null,null,null,null,{"$f":"'[1]раздел 1'!CC107","v":70557.37},null,null,null,null,null,null,null,null,null,null,null,null,{"$f":"'[1]раздел 1'!CH107","v":70557.37}]
[null,null,null,null,null,null,null,null,"коммунальные услуги",null,null,null,null,null,null,null,null,null,null,null,null,null,null,null,null,null,null,null,null,null,null,null,null,null,null,null,null,null,null,null,null,null,null,null,null,null,null,null,null,null,null,null,null,null,null,null,null,null,null,null,null,null,null,null,null,null,null,null,null,null,null,null,null,null,null,null,null,null,null,null,null,null,null,null,null,null,null,null,null,null,null,null,null,null,null,null,null,null,null,"х",null,null,null,null,null,null,null,null,null,"х","х",{"$f":"'[1]раздел 1'!BX108","v":91582.54},null,null,null,null,null,null,null,null,null,null,null,null,{"$f":"'[1]раздел 1'!CC108","v":79419.650000000009},null,null,null,null,null,null,null,null,null,null,null,null,{"$f":"'[1]раздел 1'!CH108","v":79419.650000000009}]
[null,null,null,null,null,null,null,null,"коммунальные услуги",null,null,null,null,null,null,null,null,null,null,null,null,null,null,null,null,null,null,null,null,null,null,null,null,null,null,null,null,null,null,null,null,null,null,null,null,null,null,null,null,null,null,null,null,null,null,null,null,null,null,null,null,null,null,null,null,null,null,null,null,null,null,null,null,null,null,null,null,null,null,null,null,null,null,null,null,null,null,null,null,null,null,null,null,null,null,null,null,null,null,"х",null,null,null,null,null,null,null,null,null,"х","х",{"$f":"'[1]раздел 1'!BX109","v":0},null,null,null,null,null,null,null,null,null,null,null,null,{"$f":"'[1]раздел 1'!CC109","v":0},null,null,null,null,null,null,null,null,null,null,null,null,{"$f":"'[1]раздел 1'!CH109","v":0}]
[null,null,null,null,null,null,null,null,"услуги по содержанию имущества",null,null,null,null,null,null,null,null,null,null,null,null,null,null,null,null,null,null,null,null,null,null,null,null,null,null,null,null,null,null,null,null,null,null,null,null,null,null,null,null,null,null,null,null,null,null,null,null,null,null,null,null,null,null,null,null,null,null,null,null,null,null,null,null,null,null,null,null,null,null,null,null,null,null,null,null,null,null,null,null,null,null,null,null,null,null,null,null,null,null,"х",null,null,null,null,null,null,null,null,null,"х","х",{"$f":"'[1]раздел 1'!BX112","v":1245932.69},null,null,null,null,null,null,null,null,null,null,null,null,{"$f":"'[1]раздел 1'!CC112","v":1534822.69},null,null,null,null,null,null,null,null,null,null,null,null,{"$f":"'[1]раздел 1'!CH112","v":1534822.69}]
[null,null,null,null,null,null,null,null,"услуги по содержанию имущества",null,null,null,null,null,null,null,null,null,null,null,null,null,null,null,null,null,null,null,null,null,null,null,null,null,null,null,null,null,null,null,null,null,null,null,null,null,null,null,null,null,null,null,null,null,null,null,null,null,null,null,null,null,null,null,null,null,null,null,null,null,null,null,null,null,null,null,null,null,null,null,null,null,null,null,null,null,null,null,null,null,null,null,null,null,null,null,null,null,null,"х",null,null,null,null,null,null,null,null,null,"х","х",{"$f":"'[1]раздел 1'!BX113","v":101158.24},null,null,null,null,null,null,null,null,null,null,null,null,{"$f":"'[1]раздел 1'!CC113","v":94918.24},null,null,null,null,null,null,null,null,null,null,null,null,{"$f":"'[1]раздел 1'!CH113","v":94918.24}]
[null,null,null,null,null,null,null,null,"прочие работы, услуги",null,null,null,null,null,null,null,null,null,null,null,null,null,null,null,null,null,null,null,null,null,null,null,null,null,null,null,null,null,null,null,null,null,null,null,null,null,null,null,null,null,null,null,null,null,null,null,null,null,null,null,null,null,null,null,null,null,null,null,null,null,null,null,null,null,null,null,null,null,null,null,null,null,null,null,null,null,null,null,null,null,null,null,null,null,null,null,null,null,null,"х",null,null,null,null,null,null,null,null,null,"х","х",{"$f":"'[1]раздел 1'!BX114","v":1386714.55},null,null,null,null,null,null,null,null,null,null,null,null,{"$f":"'[1]раздел 1'!CC114","v":1500368.78},null,null,null,null,null,null,null,null,null,null,null,null,{"$f":"'[1]раздел 1'!CH114","v":1500368.78}]
[null,null,null,null,null,null,null,null,"прочие работы, услуги",null,null,null,null,null,null,null,null,null,null,null,null,null,null,null,null,null,null,null,null,null,null,null,null,null,null,null,null,null,null,null,null,null,null,null,null,null,null,null,null,null,null,null,null,null,null,null,null,null,null,null,null,null,null,null,null,null,null,null,null,null,null,null,null,null,null,null,null,null,null,null,null,null,null,null,null,null,null,null,null,null,null,null,null,null,null,null,null,null,null,"х",null,null,null,null,null,null,null,null,null,"х","х",{"$f":"'[1]раздел 1'!BX115","v":583240},null,null,null,null,null,null,null,null,null,null,null,null,{"$f":"'[1]раздел 1'!CC115","v":624860},null,null,null,null,null,null,null,null,null,null,null,null,{"$f":"'[1]раздел 1'!CH115","v":624860}]
[null,null,null,null,null,null,null,null,"страхование",null,null,null,null,null,null,null,null,null,null,null,null,null,null,null,null,null,null,null,null,null,null,null,null,null,null,null,null,null,null,null,null,null,null,null,null,null,null,null,null,null,null,null,null,null,null,null,null,null,null,null,null,null,null,null,null,null,null,null,null,null,null,null,null,null,null,null,null,null,null,null,null,null,null,null,null,null,null,null,null,null,null,null,null,null,null,null,null,null,null,"х",null,null,null,null,null,null,null,null,null,"х","х",{"$f":"'[1]раздел 1'!BX116","v":1400},null,null,null,null,null,null,null,null,null,null,null,null,{"$f":"'[1]раздел 1'!CC116","v":1400},null,null,null,null,null,null,null,null,null,null,null,null,{"$f":"'[1]раздел 1'!CH116","v":1400}]
[null,null,null,null,null,null,null,null,"увеличение стоимости основных средств",null,null,null,null,null,null,null,null,null,null,null,null,null,null,null,null,null,null,null,null,null,null,null,null,null,null,null,null,null,null,null,null,null,null,null,null,null,null,null,null,null,null,null,null,null,null,null,null,null,null,null,null,null,null,null,null,null,null,null,null,null,null,null,null,null,null,null,null,null,null,null,null,null,null,null,null,null,null,null,null,null,null,null,null,null,null,null,null,null,null,"х",null,null,null,null,null,null,null,null,null,"х","х",{"$f":"'[1]раздел 1'!BX117","v":320279.28999999998},null,null,null,null,null,null,null,null,null,null,null,null,{"$f":"'[1]раздел 1'!CC117","v":640369.29},null,null,null,null,null,null,null,null,null,null,null,null,{"$f":"'[1]раздел 1'!CH117","v":640369.29}]
[null,null,null,null,null,null,null,null,"увеличение стоимости лекарственных препаратов и материалов, применяемых в медицинских целях",null,null,null,null,null,null,null,null,null,null,null,null,null,null,null,null,null,null,null,null,null,null,null,null,null,null,null,null,null,null,null,null,null,null,null,null,null,null,null,null,null,null,null,null,null,null,null,null,null,null,null,null,null,null,null,null,null,null,null,null,null,null,null,null,null,null,null,null,null,null,null,null,null,null,null,null,null,null,null,null,null,null,null,null,null,null,null,null,null,null,"х",null,null,null,null,null,null,null,null,null,"х","х",{"$f":"'[1]раздел 1'!BX118","v":5176},null,null,null,null,null,null,null,null,null,null,null,null,{"$f":"'[1]раздел 1'!CC118","v":5176},null,null,null,null,null,null,null,null,null,null,null,null,{"$f":"'[1]раздел 1'!CH118","v":5176}]
[null,null,null,null,null,null,null,null,"увеличение стоимости лекарственных препаратов и материалов, применяемых в медицинских целях",null,null,null,null,null,null,null,null,null,null,null,null,null,null,null,null,null,null,null,null,null,null,null,null,null,null,null,null,null,null,null,null,null,null,null,null,null,null,null,null,null,null,null,null,null,null,null,null,null,null,null,null,null,null,null,null,null,null,null,null,null,null,null,null,null,null,null,null,null,null,null,null,null,null,null,null,null,null,null,null,null,null,null,null,null,null,null,null,null,null,"х",null,null,null,null,null,null,null,null,null,"х","х",{"$f":"'[1]раздел 1'!BX119","v":0},null,null,null,null,null,null,null,null,null,null,null,null,{"$f":"'[1]раздел 1'!CC119","v":0},null,null,null,null,null,null,null,null,null,null,null,null,{"$f":"'[1]раздел 1'!CH119","v":0}]
[null,null,null,null,null,null,null,null,"увеличение стоимости продуктов питания",null,null,null,null,null,null,null,null,null,null,null,null,null,null,null,null,null,null,null,null,null,null,null,null,null,null,null,null,null,null,null,null,null,null,null,null,null,null,null,null,null,null,null,null,null,null,null,null,null,null,null,null,null,null,null,null,null,null,null,null,null,null,null,null,null,null,null,null,null,null,null,null,null,null,null,null,null,null,null,null,null,null,null,null,null,null,null,null,null,null,"х",null,null,null,null,null,null,null,null,null,"х","х",{"$f":"'[1]раздел 1'!BX120","v":242698.05},null,null,null,null,null,null,null,null,null,null,null,null,{"$f":"'[1]раздел 1'!CC120","v":620200},null,null,null,null,null,null,null,null,null,null,null,null,{"$f":"'[1]раздел 1'!CH120","v":620200}]
[null,null,null,null,null,null,null,null,"увеличение стоимости продуктов питания",null,null,null,null,null,null,null,null,null,null,null,null,null,null,null,null,null,null,null,null,null,null,null,null,null,null,null,null,null,null,null,null,null,null,null,null,null,null,null,null,null,null,null,null,null,null,null,null,null,null,null,null,null,null,null,null,null,null,null,null,null,null,null,null,null,null,null,null,null,null,null,null,null,null,null,null,null,null,null,null,null,null,null,null,null,null,null,null,null,null,"х",null,null,null,null,null,null,null,null,null,"х","х",{"$f":"'[1]раздел 1'!BX121","v":79650},null,null,null,null,null,null,null,null,null,null,null,null,{"$f":"'[1]раздел 1'!CC121","v":88650},null,null,null,null,null,null,null,null,null,null,null,null,{"$f":"'[1]раздел 1'!CH121","v":88650}]
[null,null,null,null,null,null,null,null,"увеличение стоимости мягкого инвентаря",null,null,null,null,null,null,null,null,null,null,null,null,null,null,null,null,null,null,null,null,null,null,null,null,null,null,null,null,null,null,null,null,null,null,null,null,null,null,null,null,null,null,null,null,null,null,null,null,null,null,null,null,null,null,null,null,null,null,null,null,null,null,null,null,null,null,null,null,null,null,null,null,null,null,null,null,null,null,null,null,null,null,null,null,null,null,null,null,null,null,"х",null,null,null,null,null,null,null,null,null,"х","х",{"$f":"'[1]раздел 1'!BX122","v":57390},null,null,null,null,null,null,null,null,null,null,null,null,{"$f":"'[1]раздел 1'!CC122","v":57390},null,null,null,null,null,null,null,null,null,null,null,null,{"$f":"'[1]раздел 1'!CH122","v":57390}]
[null,null,null,null,null,null,null,null,"увеличение стоимости мягкого инвентаря",null,null,null,null,null,null,null,null,null,null,null,null,null,null,null,null,null,null,null,null,null,null,null,null,null,null,null,null,null,null,null,null,null,null,null,null,null,null,null,null,null,null,null,null,null,null,null,null,null,null,null,null,null,null,null,null,null,null,null,null,null,null,null,null,null,null,null,null,null,null,null,null,null,null,null,null,null,null,null,null,null,null,null,null,null,null,null,null,null,null,"х",null,null,null,null,null,null,null,null,null,"х","х",{"$f":"'[1]раздел 1'!BX123","v":2040},null,null,null,null,null,null,null,null,null,null,null,null,{"$f":"'[1]раздел 1'!CC123","v":2040},null,null,null,null,null,null,null,null,null,null,null,null,{"$f":"'[1]раздел 1'!CH123","v":2040}]
[null,null,null,null,null,null,null,null,"увеличение стоимости прочих оборотных запасов (материалов)",null,null,null,null,null,null,null,null,null,null,null,null,null,null,null,null,null,null,null,null,null,null,null,null,null,null,null,null,null,null,null,null,null,null,null,null,null,null,null,null,null,null,null,null,null,null,null,null,null,null,null,null,null,null,null,null,null,null,null,null,null,null,null,null,null,null,null,null,null,null,null,null,null,null,null,null,null,null,null,null,null,null,null,null,null,null,null,null,null,null,"х",null,null,null,null,null,null,null,null,null,"х","х",{"$f":"'[1]раздел 1'!BX124","v":615043.3600000001},null,null,null,null,null,null,null,null,null,null,null,null,{"$f":"'[1]раздел 1'!CC124","v":553927.22},null,null,null,null,null,null,null,null,null,null,null,null,{"$f":"'[1]раздел 1'!CH124","v":553927.22}]
[null,null,null,null,null,null,null,null,"увеличение стоимости прочих оборотных запасов (материалов)",null,null,null,null,null,null,null,null,null,null,null,null,null,null,null,null,null,null,null,null,null,null,null,null,null,null,null,null,null,null,null,null,null,null,null,null,null,null,null,null,null,null,null,null,null,null,null,null,null,null,null,null,null,null,null,null,null,null,null,null,null,null,null,null,null,null,null,null,null,null,null,null,null,null,null,null,null,null,null,null,null,null,null,null,null,null,null,null,null,null,"х",null,null,null,null,null,null,null,null,null,"х","х",{"$f":"'[1]раздел 1'!BX125","v":52590},null,null,null,null,null,null,null,null,null,null,null,null,{"$f":"'[1]раздел 1'!CC125","v":56590},null,null,null,null,null,null,null,null,null,null,null,null,{"$f":"'[1]раздел 1'!CH125","v":56590}]
[null,null,null,null,null,null,null,null,"Увеличение стоимости материальных запасов для целей капитальных вложений",null,null,null,null,null,null,null,null,null,null,null,null,null,null,null,null,null,null,null,null,null,null,null,null,null,null,null,null,null,null,null,null,null,null,null,null,null,null,null,null,null,null,null,null,null,null,null,null,null,null,null,null,null,null,null,null,null,null,null,null,null,null,null,null,null,null,null,null,null,null,null,null,null,null,null,null,null,null,null,null,null,null,null,null,null,null,null,null,null,null,"х",null,null,null,null,null,null,null,null,null,"х","х",{"$f":"'[1]раздел 1'!BX126","v":0},null,null,null,null,null,null,null,null,null,null,null,null,{"$f":"DH39","v":0},null,null,null,null,null,null,null,null,null,null,null,null,{"$f":"DU39","v":0}]
[null,null,null,null,null,null,null,null,"увеличение стоимости прочих материальных запасов однократного применения",null,null,null,null,null,null,null,null,null,null,null,null,null,null,null,null,null,null,null,null,null,null,null,null,null,null,null,null,null,null,null,null,null,null,null,null,null,null,null,null,null,null,null,null,null,null,null,null,null,null,null,null,null,null,null,null,null,null,null,null,null,null,null,null,null,null,null,null,null,null,null,null,null,null,null,null,null,null,null,null,null,null,null,null,null,null,null,null,null,null,"х",null,null,null,null,null,null,null,null,null,"х","х",{"$f":"'[1]раздел 1'!BX128","v":230510},null,null,null,null,null,null,null,null,null,null,null,null,{"$f":"'[1]раздел 1'!CC128","v":184460},null,null,null,null,null,null,null,null,null,null,null,null,{"$f":"'[1]раздел 1'!CH128","v":184460}]
[null,null,null,null,null,null,null,null,"увеличение стоимости прочих материальных запасов однократного применения",null,null,null,null,null,null,null,null,null,null,null,null,null,null,null,null,null,null,null,null,null,null,null,null,null,null,null,null,null,null,null,null,null,null,null,null,null,null,null,null,null,null,null,null,null,null,null,null,null,null,null,null,null,null,null,null,null,null,null,null,null,null,null,null,null,null,null,null,null,null,null,null,null,null,null,null,null,null,null,null,null,null,null,null,null,null,null,null,null,null,"х",null,null,null,null,null,null,null,null,null,"х","х",{"$f":"'[1]раздел 1'!BX129","v":75600},null,null,null,null,null,null,null,null,null,null,null,null,{"$f":"'[1]раздел 1'!CC129","v":62500},null,null,null,null,null,null,null,null,null,null,null,null,{"$f":"'[1]раздел 1'!CH129","v":62500}]
["1.4.2",null,null,null,null,null,null,null,"за счет субсидий, предоставляемых в соответствии с абзацем вторым пункта 1 статьи 78.1 Бюджетного кодекса Российской Федерации",null,null,null,null,null,null,null,null,null,null,null,null,null,null,null,null,null,null,null,null,null,null,null,null,null,null,null,null,null,null,null,null,null,null,null,null,null,null,null,null,null,null,null,null,null,null,null,null,null,null,null,null,null,null,null,null,null,null,null,null,null,null,null,null,null,null,null,null,null,null,null,null,null,null,null,null,null,null,null,null,null,null,"26420",null,null,null,null,null,null,null,"х",null,null,null,null,null,null,null,null,null,"х","х",{"$f":"DH45","v":4364354},null,null,null,null,null,null,null,null,null,null,null,null,{"$f":"DU45","v":1513953.05},null,null,null,null,null,null,null,null,null,null,null,null,{"$f":"EH45","v":1513953.05}]
["1.4.2.1",null,null,null,null,null,null,null,"в том числе:\nв соответствии с Федеральным законом № 44-ФЗ",null,null,null,null,null,null,null,null,null,null,null,null,null,null,null,null,null,null,null,null,null,null,null,null,null,null,null,null,null,null,null,null,null,null,null,null,null,null,null,null,null,null,null,null,null,null,null,null,null,null,null,null,null,null,null,null,null,null,null,null,null,null,null,null,null,null,null,null,null,null,null,null,null,null,null,null,null,null,null,null,null,null,"26421",null,null,null,null,null,null,null,"х",null,null,null,null,null,null,null,null,null,"х","х"]
[null,null,null,null,null,null,null,null,"из них <10.1>",null,null,null,null,null,null,null,null,null,null,null,null,null,null,null,null,null,null,null,null,null,null,null,null,null,null,null,null,null,null,null,null,null,null,null,null,null,null,null,null,null,null,null,null,null,null,null,null,null,null,null,null,null,null,null,null,null,null,null,null,null,null,null,null,null,null,null,null,null,null,null,null,null,null,null,null,null,null,null,null,null,null,"26421.1",null,null,null,null,null,null,null,"х",null,null,null,null,null,null,null,null,null,"х","х"]
["1.4.2.2",null,null,null,null,null,null,null,"в соответствии с Федеральным законом № 223-ФЗ 14",null,null,null,null,null,null,null,null,null,null,null,null,null,null,null,null,null,null,null,null,null,null,null,null,null,null,null,null,null,null,null,null,null,null,null,null,null,null,null,null,null,null,null,null,null,null,null,null,null,null,null,null,null,null,null,null,null,null,null,null,null,null,null,null,null,null,null,null,null,null,null,null,null,null,null,null,null,null,null,null,null,null,"26422",null,null,null,null,null,null,null,"х",null,null,null,null,null,null,null,null,null,"х","х",{"$f":"'раздел 1'!BZ102","v":4364354},null,null,null,null,null,null,null,null,null,null,null,null,{"$f":"'раздел 1'!CE102","v":1513953.05},null,null,null,null,null,null,null,null,null,null,null,null,{"$f":"'раздел 1'!CJ102","v":1513953.05}]
["1.4.3",null,null,null,null,null,null,null,"за счет субсидий, предоставляемых на осуществление капитальных вложений 15",null,null,null,null,null,null,null,null,null,null,null,null,null,null,null,null,null,null,null,null,null,null,null,null,null,null,null,null,null,null,null,null,null,null,null,null,null,null,null,null,null,null,null,null,null,null,null,null,null,null,null,null,null,null,null,null,null,null,null,null,null,null,null,null,null,null,null,null,null,null,null,null,null,null,null,null,null,null,null,null,null,null,"26430",null,null,null,null,null,null,null,"х",null,null,null,null,null,null,null,null,null,"х","х"]
[null,null,null,null,null,null,null,null,"из них <10.1>",null,null,null,null,null,null,null,null,null,null,null,null,null,null,null,null,null,null,null,null,null,null,null,null,null,null,null,null,null,null,null,null,null,null,null,null,null,null,null,null,null,null,null,null,null,null,null,null,null,null,null,null,null,null,null,null,null,null,null,null,null,null,null,null,null,null,null,null,null,null,null,null,null,null,null,null,null,null,null,null,null,null,"26430.1",null,null,null,null,null,null,null,"х"]
[null,null,null,null,null,null,null,null,"из них <10.2>",null,null,null,null,null,null,null,null,null,null,null,null,null,null,null,null,null,null,null,null,null,null,null,null,null,null,null,null,null,null,null,null,null,null,null,null,null,null,null,null,null,null,null,null,null,null,null,null,null,null,null,null,null,null,null,null,null,null,null,null,null,null,null,null,null,null,null,null,null,null,null,null,null,null,null,null,null,null,null,null,null,null,"26430.2",null,null,null,null,null,null,null,"х"]
["1.4.4",null,null,null,null,null,null,null,"за счет средств обязательного медицинского страхования",null,null,null,null,null,null,null,null,null,null,null,null,null,null,null,null,null,null,null,null,null,null,null,null,null,null,null,null,null,null,null,null,null,null,null,null,null,null,null,null,null,null,null,null,null,null,null,null,null,null,null,null,null,null,null,null,null,null,null,null,null,null,null,null,null,null,null,null,null,null,null,null,null,null,null,null,null,null,null,null,null,null,"26440",null,null,null,null,null,null,null,"х",null,null,null,null,null,null,null,null,null,"х","х"]
["1.4.4.1",null,null,null,null,null,null,null,"в том числе:\nв соответствии с Федеральным законом № 44-ФЗ",null,null,null,null,null,null,null,null,null,null,null,null,null,null,null,null,null,null,null,null,null,null,null,null,null,null,null,null,null,null,null,null,null,null,null,null,null,null,null,null,null,null,null,null,null,null,null,null,null,null,null,null,null,null,null,null,null,null,null,null,null,null,null,null,null,null,null,null,null,null,null,null,null,null,null,null,null,null,null,null,null,null,"26441",null,null,null,null,null,null,null,"х",null,null,null,null,null,null,null,null,null,"х","х"]
["1.4.4.2",null,null,null,null,null,null,null,"в соответствии с Федеральным законом № 223-ФЗ 14",null,null,null,null,null,null,null,null,null,null,null,null,null,null,null,null,null,null,null,null,null,null,null,null,null,null,null,null,null,null,null,null,null,null,null,null,null,null,null,null,null,null,null,null,null,null,null,null,null,null,null,null,null,null,null,null,null,null,null,null,null,null,null,null,null,null,null,null,null,null,null,null,null,null,null,null,null,null,null,null,null,null,"26442",null,null,null,null,null,null,null,"х",null,null,null,null,null,null,null,null,null,"х","х"]
["1.4.5",null,null,null,null,null,null,null,"за счет прочих источников финансового обеспечения",null,null,null,null,null,null,null,null,null,null,null,null,null,null,null,null,null,null,null,null,null,null,null,null,null,null,null,null,null,null,null,null,null,null,null,null,null,null,null,null,null,null,null,null,null,null,null,null,null,null,null,null,null,null,null,null,null,null,null,null,null,null,null,null,null,null,null,null,null,null,null,null,null,null,null,null,null,null,null,null,null,null,"26450",null,null,null,null,null,null,null,"х",null,null,null,null,null,null,null,null,null,"х","х",{"$f":"DH56","v":893304.32000000007},null,null,null,null,null,null,null,null,null,null,null,null,{"$f":"DU56","v":2056156.74},null,null,null,null,null,null,null,null,null,null,null,null,{"$f":"EH56","v":2056156.74}]
["1.4.5.1",null,null,null,null,null,null,null,"в том числе:\nв соответствии с Федеральным законом № 44-ФЗ",null,null,null,null,null,null,null,null,null,null,null,null,null,null,null,null,null,null,null,null,null,null,null,null,null,null,null,null,null,null,null,null,null,null,null,null,null,null,null,null,null,null,null,null,null,null,null,null,null,null,null,null,null,null,null,null,null,null,null,null,null,null,null,null,null,null,null,null,null,null,null,null,null,null,null,null,null,null,null,null,null,null,"26451",null,null,null,null,null,null,null,"х",null,null,null,null,null,null,null,null,null,"х","х"]
[null,null,null,null,null,null,null,null,"из них <10.1>",null,null,null,null,null,null,null,null,null,null,null,null,null,null,null,null,null,null,null,null,null,null,null,null,null,null,null,null,null,null,null,null,null,null,null,null,null,null,null,null,null,null,null,null,null,null,null,null,null,null,null,null,null,null,null,null,null,null,null,null,null,null,null,null,null,null,null,null,null,null,null,null,null,null,null,null,null,null,null,null,null,null,"26451.1",null,null,null,null,null,null,null,"х"]
[null,null,null,null,null,null,null,null,"из них <10.2>",null,null,null,null,null,null,null,null,null,null,null,null,null,null,null,null,null,null,null,null,null,null,null,null,null,null,null,null,null,null,null,null,null,null,null,null,null,null,null,null,null,null,null,null,null,null,null,null,null,null,null,null,null,null,null,null,null,null,null,null,null,null,null,null,null,null,null,null,null,null,null,null,null,null,null,null,null,null,null,null,null,null,"26451.2",null,null,null,null,null,null,null,"х"]
["1.4.5.2",null,null,null,null,null,null,null,"в соответствии с Федеральным законом № 223-ФЗ",null,null,null,null,null,null,null,null,null,null,null,null,null,null,null,null,null,null,null,null,null,null,null,null,null,null,null,null,null,null,null,null,null,null,null,null,null,null,null,null,null,null,null,null,null,null,null,null,null,null,null,null,null,null,null,null,null,null,null,null,null,null,null,null,null,null,null,null,null,null,null,null,null,null,null,null,null,null,null,null,null,null,"26452",null,null,null,null,null,null,null,"х",null,null,null,null,null,null,null,null,null,null,null,{"$f":"'раздел 1'!CB102","v":893304.32000000007},null,null,null,null,null,null,null,null,null,null,null,null,{"$f":"'раздел 1'!CG102","v":2056156.74},null,null,null,null,null,null,null,null,null,null,null,null,{"$f":"'раздел 1'!CL102","v":2056156.74}]
["2",null,null,null,null,null,null,null,"Итого по контрактам, планируемым к заключению в соответствующем финансовом году в соответствии с Федеральным законом № 44-ФЗ, по соответствующему году закупки 16",null,null,null,null,null,null,null,null,null,null,null,null,null,null,null,null,null,null,null,null,null,null,null,null,null,null,null,null,null,null,null,null,null,null,null,null,null,null,null,null,null,null,null,null,null,null,null,null,null,null,null,null,null,null,null,null,null,null,null,null,null,null,null,null,null,null,null,null,null,null,null,null,null,null,null,null,null,null,null,null,null,null,"26500",null,null,null,null,null,null,null,"х"]
[null,null,null,null,null,null,null,null,"в том числе по году начала закупки:",null,null,null,null,null,null,null,null,null,null,null,null,null,null,null,null,null,null,null,null,null,null,null,null,null,null,null,null,null,null,null,null,null,null,null,null,null,null,null,null,null,null,null,null,null,null,null,null,null,null,null,null,null,null,null,null,null,null,null,null,null,null,null,null,null,null,null,null,null,null,null,null,null,null,null,null,null,null,null,null,null,null,"26510"]
[]
["3",null,null,null,null,null,null,null,"Итого по договорам, планируемым к заключению в соответствующем финансовом году в соответствии с Федеральным законом № 223-ФЗ, по соответствующему году закупки",null,null,null,null,null,null,null,null,null,null,null,null,null,null,null,null,null,null,null,null,null,null,null,null,null,null,null,null,null,null,null,null,null,null,null,null,null,null,null,null,null,null,null,null,null,null,null,null,null,null,null,null,null,null,null,null,null,null,null,null,null,null,null,null,null,null,null,null,null,null,null,null,null,null,null,null,null,null,null,null,null,null,"26600",null,null,null,null,null,null,null,"х"]
[null,null,null,null,null,null,null,null,"в том числе по году начала закупки:",null,null,null,null,null,null,null,null,null,null,null,null,null,null,null,null,null,null,null,null,null,null,null,null,null,null,null,null,null,null,null,null,null,null,null,null,null,null,null,null,null,null,null,null,null,null,null,null,null,null,null,null,null,null,null,null,null,null,null,null,null,null,null,null,null,null,null,null,null,null,null,null,null,null,null,null,null,null,null,null,null,null,"26610"]
[]
[]
[null,null,null,null,null,null,null,null,"Руководитель учреждения"]
[null,null,null,null,null,null,null,null,"(уполномоченное лицо учреждения)",null,null,null,null,null,null,null,null,null,null,null,null,null,null,null,null,null,null,null,null,null,null,null,null,null,null,null,null,null,null,null,null,null,"Директор",null,null,null,null,null,null,null,null,null,null,null,null,null,null,null,null,null,null,null,null,null,null,null,null,null,null,null,null,null,null,null,null,null,"Герасимов С.В."]
[null,null,null,null,null,null,null,null,null,null,null,null,null,null,null,null,null,null,null,null,null,null,null,null,null,null,null,null,null,null,null,null,null,null,null,null,null,null,null,null,null,null,"(должность)",null,null,null,null,null,null,null,null,null,null,null,null,null,null,null,null,null,null,null,"(подпись)",null,null,null,null,null,null,null,null,null,null,null,null,null,"(расшифровка подписи)"]
[]
[null,null,null,null,null,null,null,null,"Исполнитель",null,null,null,null,null,null,null,null,null,null,null,null,null,null,null,null,null,null,null,null,null,null,null,null,null,null,null,null,null,"Ведущий экономист",null,null,null,null,null,null,null,null,null,null,null,null,null,null,null,null,null,null,null,null,null,null,null,null,null,null,null,null,null,null,null,null,null,null,null,null,null,null,null,"Богданова Н.Ф."]
[null,null,null,null,null,null,null,null,null,null,null,null,null,null,null,null,null,null,null,null,null,null,null,null,null,null,null,null,null,null,null,null,null,null,null,null,null,null,"(должность)",null,null,null,null,null,null,null,null,null,null,null,null,null,null,null,null,null,null,null,"(фамилия, инициалы)",null,null,null,null,null,null,null,null,null,null,null,null,null,null,null,null,null,null,null,"(телефон)"]
[]
[null,null,null,null,null,null,null,null,"\"",null,null,null,null,"\"",null,null,null,null,null,null,null,null,null,null,null,null,null,null,null,null,null,20,null,null,null,null,null," г."]
[]
[]
["СОГЛАСОВАНО"]
[]
["(наименование должности уполномоченного лица Учредителя)"]
[]
[]
["(подпись)",null,null,null,null,null,null,null,null,null,null,null,null,null,null,null,null,null,null,null,null,null,null,null,null,null,null,null,null,null,null,null,null,"(расшифровка подписи)"]
[]
["\"",null,null,null,null,"\"",null,null,null,null,null,null,null,null,null,null,null,null,null,null,null,null,null,20,null,null,null,null,null," г."]
[]
[]
["_____10_В Разделе 2 \"Сведения по выплатам на закупку товаров, работ, услуг\" Плана детализируются показатели выплат по расходам на закупку товаров, работ, услуг, отраженные по соответствующим строкам Раздела 1 \"Поступления и выплаты\" Плана."]
["_____10.1 В случаях, если учреждению предоставляются субсидия на иные цели, субсидия на осуществление капитальных вложений  или грант в форме субсидии в соответствии с абзацем первым пункта 4 статьи 78.1 Бюджетного кодекса Российской Федерации в целях достижения результатов федерального проекта, в том числе входящего в состав соответствующего национального проекта (программы), определенного Указом Президента Российской Федерации от 7 мая 2018 г. N 204 «О национальных целях и стратегических задачах развития Российской Федерации на период до 2024 года» (Собрание законодательства Российской Федерации, 2018, N 20, ст. 2817; N 30, ст. 4717),  или регионального проекта, обеспечивающего достижение целей, показателей и результатов федерального проекта (далее - региональный проект), показатели строк 26310, 26421, 26430 и 26451 Раздела 2 «Сведения по выплатам на закупку товаров, работ, услуг» детализируются по коду целевой статьи (8 - 17 разряды кода классификации расходов бюджетов, при этом в рамках реализации регионального проекта в 8 - 10 разрядах могут указываться нули).».\n\n"]
["_____10.2 Указывается уникальный код объекта капитального строительства или объекта недвижимого имущества, присвоенный государственной интегрированной информационной системой управления общественными финансами «Электронный бюджет», в случае если источником финансового обеспечения расходов на осуществление капитальных вложений являются средства федерального бюджета, в том числе предоставленные в виде межбюджетного трансферта в целях софинансирования расходных обязательств субъекта Российской Федерации (муниципального образования)."]
["_____11_Плановые показатели выплат на закупку товаров, работ, услуг по строке 26000 Раздела 2 \"Сведения по выплатам на закупку товаров, работ, услуг\" Плана распределяются на выплаты по контрактам (договорам), заключенным (планируемым к заключению) в соответствии с гражданским законодательством (строки 26100 и 26200), а также по контрактам (договорам), заключаемым в соответствии с требованиями законодательства Российской Федерации и иных нормативных правовых актов о контрактной системе в сфере закупок товаров, работ, услуг для обеспечения государственных и муниципальных нужд с детализацией указанных выплат по контрактам (договорам), заключенным до начала текущего финансового года (строка 26300) и планируемым к заключению в соответствующем финансовом году (строка 26400).\".\n\n"]
["_____12_Указывается сумма договоров (контрактов) о закупках товаров, работ, услуг, заключенных без учета требований Федерального закона № 44-ФЗ и Федерального закона № 223-ФЗ, в случаях, предусмотренных указанными федеральными законами."]
["_____13_Указывается сумма закупок товаров, работ, услуг, осуществляемых в соответствии с Федеральным законом № 44-ФЗ и Федеральным законом № 223-ФЗ."]
["_____14_Государственным (муниципальным) бюджетным учреждением показатель не формируется."]
["_____15_Указывается сумма закупок товаров, работ, услуг, осуществляемых в соответствии с Федеральным законом № 44-ФЗ."]
["_____16_Плановые показатели выплат на закупку товаров, работ, услуг по строке 26500 муниципального бюджетного учреждения должен быть не менее суммы показателей строк 26410, 26420, 26430, 26440 по соответствующей графе, муниципального автономного учреждения - не менее показателя строки 26430 по соответствующей графе."]